{"text_format":"1","workbook":"xlsx","n_sheets":34,"sheets":["Master","LOOKUPiNFO","M60m","M200m","M400m","M800m","M1500m","M3000m","M60mH","MHJ","MLJ","MTJ","MPV","MSP","M4x200m","MAmb60","MAmbLJ","1","W60m","W200m","W400m","W800m","W1500m","W3000m","W60mH","WHJ","WLJ","WTJ","WPV","WSP","W4x200m","WAmb60m","WAmbLJ","WAmbSP"],"not_rendered":{"charts":0,"images":0,"macros":1,"external_links":0,"defined_names":1,"comments":0,"pivot_tables":0},"unopened":[],"bounds":{"document_bytes":16777216,"sheet_cells":100000,"rows_first":2000,"rows_last":500,"rows_between":2000,"halvings":0,"cell_chars":16384,"cell_head_chars":4096},"cells_cut":0,"cells_raw":0,"read":"whole","date_system":"1900"}

{"sheet":"Master","index":0,"n_rows":254,"n_cols":13,"rows_kept":254,"cut":false,"hidden":true,"merged":[]}
["Race Number","First Name","Last Name","Institution","BUCSAthleticsPowerOf10Link2021","DOB","STATUS","RANK","BP"]
[292,"Margarita","Radeva","Aberdeen","https://www.bfla.org/2020/2020/12_u18/women/2000sc.htm","2001-07-10","Guaranteed",null,"00:07:38.430",null,"Y","3a",{"$f":"IFERROR(VLOOKUP(L2,LookupTable,2,0),\"\")","v":"Updated BP since 1 November 2019"}]
[329,"Rachel","Burton","Bath","https://www.thepowerof10.info/athletes/profile.aspx?athleteid=404200","2002-01-28","Non Guaranteed",3,"00:07:50.460",null,"R",6,{"$f":"IFERROR(VLOOKUP(L3,LookupTable,2,0),\"\")","v":"3rd 4th Athlete -Not met entry requirements"}]
[338,"Lizzy","Ingram","Bath","https://thepowerof10.info/athletes/profile.aspx?athleteid=732855","2002-10-19","Guaranteed",1,"00:07:20.480",null,"Y",null,""]
[343,"Lily","Newton","Bath","https://thepowerof10.info/athletes/profile.aspx?athleteid=553201","2002-03-27","Non Guaranteed",4,"00:07:46.500",null,"R",6,"3rd 4th Athlete -Not met entry requirements"]
[347,"Amelia","Wills","Bath","https://www.thepowerof10.info/athletes/profile.aspx?athleteid=623292","2002-04-04","Guaranteed",2,"00:08:45",null,"y",null,""]
[403,"Maisie","Grice","Birmingham","https://www.thepowerof10.info/athletes/profile.aspx?athleteid=373163","2000-06-29","Guaranteed",1,"00:06:32.150",null,"Y","2A","Power of 10 link entered BUT is INCORRECT"]
[405,"Lily","Higgins","Birmingham","https://www.thepowerof10.info/athletes/profile.aspx?athleteid=408027","2000-04-11","Non Guaranteed",3,"00:07:18.450",null,"Y",null,""]
[408,"Lucy","Jones","Birmingham","https://www.thepowerof10.info/athletes/profile.aspx?athleteid=117875","1998-09-18","Guaranteed",2,"00:06:44.950",null,"Y","4A","Performance Changed to be AFTER 1st November 2019"]
[503,"Maya","Hodgson","Cambridge","https://www.thepowerof10.info/athletes/profile.aspx?athleteid=689186","2001-12-29","Guaranteed",null,"00:07:26.040",null,"Y",null,""]
[599,"Aoibheann","Pearce","Coventry","https://www.thepowerof10.info/athletes/profile.aspx?athleteid=404383","2002-07-19","Guaranteed",null,"00:07:43.090",null,"Y",null,""]
[646,"Rosie","Vallance","Durham","https://www.thepowerof10.info/athletes/profile.aspx?athleteid=380080","2000-08-29","Guaranteed",1,"00:07:23.170",null,"Y","3A","Updated BP since 1 November 2019"]
[677,"Emily","Rowe","Edge Hill","https://thepowerof10.info/athletes/profile.aspx?athleteid=111970","1998-09-02","Guaranteed",1,"00:09:31.200",null,"Y",null,""]
[697,"Holly","Page","Edinburgh","https://thepowerof10.info/athletes/profile.aspx?athleteid=410950","2000-08-17","Guaranteed",null,"00:06:38.780",null,"Y","5a","Wind-assisted BP (w) changed where possible to non (w) BP"]
[725,"Katie","Balme","Exeter","https://www.thepowerof10.info/athletes/profile.aspx?athleteid=655116","2000-12-11","Guaranteed",null,"00:07:34.500",null,"Y",null,""]
[761,"Morgan","Squibb","Hartpury","https://www.thepowerof10.info/athletes/profile.aspx?athleteid=694655","2003-06-28","Guaranteed",1,"00:07:01.140",null,"y","2a","Power of 10 link entered BUT is INCORRECT"]
[793,"Julia","Lace","King’s College","https://www.thepowerof10.info/athletes/profile.aspx?athleteid=1125460","2003-05-30","Guaranteed",null,"00:09:45",null,"R","4c","Not a permitted performance since 1 November 2019"]
[858,"Charitini","Pavlou","Leeds Beckett","https://worldathletics.org/athletes/cyprus/charitini-pavlou-14903673","2002-09-26","Guaranteed",1,"00:07:23.290",null,"Y",null,""]
[990,"Alexandra","Barbour","Loughborough","https://www.thepowerof10.info/athletes/profile.aspx?athleteid=103582","1999-03-01","Guaranteed",1,"00:06:52.090",null,"Y","3A","Updated BP since 1 November 2019"]
[1068,"Kate","Meeson","Manchester","https://www.thepowerof10.info/athletes/profile.aspx?athleteid=979160","1997-09-30","Guaranteed",null,"00:09:34.530",null,"Y",null,""]
[1227,"Anna","Sharp","Oxford","https://www.thepowerof10.info/athletes/profile.aspx?athleteid=426353","1998-08-16","Guaranteed",1,"00:06:58.400",null,"Y",null,""]
[1228,"Ella","Sharrock","Oxford","https://thepowerof10.info/athletes/profile.aspx?athleteid=936553","2000-03-09","Guaranteed",2,"00:07:22.780",null,"Y",null,""]
[1250,"Katrin","Higginson","Plymouth","https://www.thepowerof10.info/athletes/profile.aspx?athleteid=358576","2000-05-25","Guaranteed",null,"00:07:42.460",null,"Y","3A","Updated BP since 1 November 2019"]
[1259,"Amy","Bream","Portsmouth","https://www.thepowerof10.info/athletes/profile.aspx?athleteid=92947","1993-12-01","Guaranteed",1,"00:07:33.800",null,"Y","3A","Updated BP since 1 November 2019"]
[1264,"Holly","Little","Queen Margaret","https://www.thepowerof10.info/athletes/profile.aspx?athleteid=115064","1999-10-31","Guaranteed",null,"00:07:16.060",null,"Y",null,""]
[1329,"Grace","Wallbank","Sheffield Hallam","https://www.thepowerof10.info/athletes/profile.aspx?athleteid=1119303","2001-10-07","Guaranteed",1,"00:08:23",null,"R","4C","Not a permitted performance since 1 November 2019"]
[1366,"Elena","Carey","St Mary’s","https://www.thepowerof10.info/athletes/profile.aspx?athleteid=436644","2000-04-14","Guaranteed",1,"00:07:09.370",null,"Y",null,""]
[1374,"Imogen","King","St Mary’s","https://www.thepowerof10.info/athletes/profile.aspx?athleteid=614582","2002-09-07","Guaranteed",2,"00:07:16.130",null,"Y",null,""]
[1379,"Rosie","Timlock","St Mary’s","https://www.thepowerof10.info/athletes/profile.aspx?athleteid=458293","2002-09-05","Non Guaranteed",3,"00:08:07.330",null,"R",6,"3rd 4th Athlete -Not met entry requirements"]
[1397,"Sarah","Tait","Stirling","https://www.thepowerof10.info/athletes/profile.aspx?athleteid=461422","2001-03-26","Guaranteed",null,"00:06:32.600",null,"Y",null,""]
[1407,"Emily","Mcnicol","Strathclyde","https://www.thepowerof10.info/athletes/profile.aspx?athleteid=111159","1999-08-28","Guaranteed",null,"00:07:03.270",null,"Y",null,""]
[null,null,null,null,null,null,null,null,null,null,null,null,""]
[null,null,null,null,null,null,null,null,null,null,null,null,""]
[null,null,null,null,null,null,null,null,null,null,null,null,""]
[null,null,null,null,null,null,null,null,null,null,null,null,{"$f":"IFERROR(VLOOKUP(L35,LookupTable,2,0),\"\")","v":""}]
[null,null,null,null,null,null,null,null,null,null,null,null,""]
[null,null,null,null,null,null,null,null,null,null,null,null,""]
[null,null,null,null,null,null,null,null,null,null,null,null,""]
[null,null,null,null,null,null,null,null,null,null,null,null,""]
[null,null,null,null,null,null,null,null,null,null,null,null,""]
[null,null,null,null,null,null,null,null,null,null,null,null,""]
[null,null,null,null,null,null,null,null,null,null,null,null,""]
[null,null,null,null,null,null,null,null,null,null,null,null,""]
[null,null,null,null,null,null,null,null,null,null,null,null,""]
[null,null,null,null,null,null,null,null,null,null,null,null,""]
[null,null,null,null,null,null,null,null,null,null,null,null,""]
[null,null,null,null,null,null,null,null,null,null,null,null,""]
[null,null,null,null,null,null,null,null,null,null,null,null,""]
[null,null,null,null,null,null,null,null,null,null,null,null,""]
[null,null,null,null,null,null,null,null,null,null,null,null,""]
[null,null,null,null,null,null,null,null,null,null,null,null,""]
[null,null,null,null,null,null,null,null,null,null,null,null,""]
[null,null,null,null,null,null,null,null,null,null,null,null,""]
[null,null,null,null,null,null,null,null,null,null,null,null,""]
[null,null,null,null,null,null,null,null,null,null,null,null,""]
[null,null,null,null,null,null,null,null,null,null,null,null,""]
[null,null,null,null,null,null,null,null,null,null,null,null,""]
[null,null,null,null,null,null,null,null,null,null,null,null,""]
[null,null,null,null,null,null,null,null,null,null,null,null,""]
[null,null,null,null,null,null,null,null,null,null,null,null,""]
[null,null,null,null,null,null,null,null,null,null,null,null,""]
[null,null,null,null,null,null,null,null,null,null,null,null,""]
[null,null,null,null,null,null,null,null,null,null,null,null,""]
[null,null,null,null,null,null,null,null,null,null,null,null,""]
[null,null,null,null,null,null,null,null,null,null,null,null,""]
[null,null,null,null,null,null,null,null,null,null,null,null,{"$f":"IFERROR(VLOOKUP(L66,LookupTable,2,0),\"\")","v":""}]
[null,null,null,null,null,null,null,null,null,null,null,null,""]
[null,null,null,null,null,null,null,null,null,null,null,null,""]
[null,null,null,null,null,null,null,null,null,null,null,null,""]
[null,null,null,null,null,null,null,null,null,null,null,null,""]
[null,null,null,null,null,null,null,null,null,null,null,null,""]
[null,null,null,null,null,null,null,null,null,null,null,null,""]
[null,null,null,null,null,null,null,null,null,null,null,null,""]
[null,null,null,null,null,null,null,null,null,null,null,null,""]
[null,null,null,null,null,null,null,null,null,null,null,null,""]
[null,null,null,null,null,null,null,null,null,null,null,null,""]
[null,null,null,null,null,null,null,null,null,null,null,null,""]
[null,null,null,null,null,null,null,null,null,null,null,null,""]
[null,null,null,null,null,null,null,null,null,null,null,null,""]
[null,null,null,null,null,null,null,null,null,null,null,null,""]
[null,null,null,null,null,null,null,null,null,null,null,null,""]
[null,null,null,null,null,null,null,null,null,null,null,null,""]
[null,null,null,null,null,null,null,null,null,null,null,null,""]
[null,null,null,null,null,null,null,null,null,null,null,null,""]
[null,null,null,null,null,null,null,null,null,null,null,null,""]
[null,null,null,null,null,null,null,null,null,null,null,null,""]
[null,null,null,null,null,null,null,null,null,null,null,null,""]
[null,null,null,null,null,null,null,null,null,null,null,null,""]
[null,null,null,null,null,null,null,null,null,null,null,null,""]
[null,null,null,null,null,null,null,null,null,null,null,null,""]
[null,null,null,null,null,null,null,null,null,null,null,null,""]
[null,null,null,null,null,null,null,null,null,null,null,null,""]
[null,null,null,null,null,null,null,null,null,null,null,null,""]
[null,null,null,null,null,null,null,null,null,null,null,null,""]
[null,null,null,null,null,null,null,null,null,null,null,null,""]
[null,null,null,null,null,null,null,null,null,null,null,null,""]
[null,null,null,null,null,null,null,null,null,null,null,null,""]
[null,null,null,null,null,null,null,null,null,null,null,null,""]
[null,null,null,null,null,null,null,null,null,null,null,null,""]
[null,null,null,null,null,null,null,null,null,null,null,null,""]
[null,null,null,null,null,null,null,null,null,null,null,null,""]
[null,null,null,null,null,null,null,null,null,null,null,null,""]
[null,null,null,null,null,null,null,null,null,null,null,null,""]
[null,null,null,null,null,null,null,null,null,null,null,null,""]
[null,null,null,null,null,null,null,null,null,null,null,null,""]
[null,null,null,null,null,null,null,null,null,null,null,null,""]
[null,null,null,null,null,null,null,null,null,null,null,null,""]
[null,null,null,null,null,null,null,null,null,null,null,null,""]
[null,null,null,null,null,null,null,null,null,null,null,null,""]
[null,null,null,null,null,null,null,null,null,null,null,null,""]
[null,null,null,null,null,null,null,null,null,null,null,null,""]
[null,null,null,null,null,null,null,null,null,null,null,null,""]
[null,null,null,null,null,null,null,null,null,null,null,null,""]
[null,null,null,null,null,null,null,null,null,null,null,null,""]
[null,null,null,null,null,null,null,null,null,null,null,null,""]
[null,null,null,null,null,null,null,null,null,null,null,null,""]
[null,null,null,null,null,null,null,null,null,null,null,null,""]
[null,null,null,null,null,null,null,null,null,null,null,null,""]
[null,null,null,null,null,null,null,null,null,null,null,null,""]
[null,null,null,null,null,null,null,null,null,null,null,null,""]
[null,null,null,null,null,null,null,null,null,null,null,null,""]
[null,null,null,null,null,null,null,null,null,null,null,null,""]
[null,null,null,null,null,null,null,null,null,null,null,null,""]
[null,null,null,null,null,null,null,null,null,null,null,null,""]
[null,null,null,null,null,null,null,null,null,null,null,null,""]
[null,null,null,null,null,null,null,null,null,null,null,null,""]
[null,null,null,null,null,null,null,null,null,null,null,null,""]
[null,null,null,null,null,null,null,null,null,null,null,null,""]
[null,null,null,null,null,null,null,null,null,null,null,null,""]
[null,null,null,null,null,null,null,null,null,null,null,null,{"$f":"IFERROR(VLOOKUP(L130,LookupTable,2,0),\"\")","v":""}]
[null,null,null,null,null,null,null,null,null,null,null,null,""]
[null,null,null,null,null,null,null,null,null,null,null,null,""]
[null,null,null,null,null,null,null,null,null,null,null,null,""]
[null,null,null,null,null,null,null,null,null,null,null,null,""]
[null,null,null,null,null,null,null,null,null,null,null,null,""]
[null,null,null,null,null,null,null,null,null,null,null,null,""]
[null,null,null,null,null,null,null,null,null,null,null,null,""]
[null,null,null,null,null,null,null,null,null,null,null,null,""]
[null,null,null,null,null,null,null,null,null,null,null,null,""]
[null,null,null,null,null,null,null,null,null,null,null,null,""]
[null,null,null,null,null,null,null,null,null,null,null,null,""]
[null,null,null,null,null,null,null,null,null,null,null,null,""]
[null,null,null,null,null,null,null,null,null,null,null,null,""]
[null,null,null,null,null,null,null,null,null,null,null,null,""]
[null,null,null,null,null,null,null,null,null,null,null,null,""]
[null,null,null,null,null,null,null,null,null,null,null,null,""]
[null,null,null,null,null,null,null,null,null,null,null,null,""]
[null,null,null,null,null,null,null,null,null,null,null,null,""]
[null,null,null,null,null,null,null,null,null,null,null,null,""]
[null,null,null,null,null,null,null,null,null,null,null,null,""]
[null,null,null,null,null,null,null,null,null,null,null,null,""]
[null,null,null,null,null,null,null,null,null,null,null,null,""]
[null,null,null,null,null,null,null,null,null,null,null,null,""]
[null,null,null,null,null,null,null,null,null,null,null,null,""]
[null,null,null,null,null,null,null,null,null,null,null,null,""]
[null,null,null,null,null,null,null,null,null,null,null,null,""]
[null,null,null,null,null,null,null,null,null,null,null,null,""]
[null,null,null,null,null,null,null,null,null,null,null,null,""]
[null,null,null,null,null,null,null,null,null,null,null,null,""]
[null,null,null,null,null,null,null,null,null,null,null,null,""]
[null,null,null,null,null,null,null,null,null,null,null,null,""]
[null,null,null,null,null,null,null,null,null,null,null,null,""]
[null,null,null,null,null,null,null,null,null,null,null,null,""]
[null,null,null,null,null,null,null,null,null,null,null,null,""]
[null,null,null,null,null,null,null,null,null,null,null,null,""]
[null,null,null,null,null,null,null,null,null,null,null,null,""]
[null,null,null,null,null,null,null,null,null,null,null,null,""]
[null,null,null,null,null,null,null,null,null,null,null,null,""]
[null,null,null,null,null,null,null,null,null,null,null,null,""]
[null,null,null,null,null,null,null,null,null,null,null,null,""]
[null,null,null,null,null,null,null,null,null,null,null,null,""]
[null,null,null,null,null,null,null,null,null,null,null,null,""]
[null,null,null,null,null,null,null,null,null,null,null,null,""]
[null,null,null,null,null,null,null,null,null,null,null,null,""]
[null,null,null,null,null,null,null,null,null,null,null,null,""]
[null,null,null,null,null,null,null,null,null,null,null,null,""]
[null,null,null,null,null,null,null,null,null,null,null,null,""]
[null,null,null,null,null,null,null,null,null,null,null,null,""]
[null,null,null,null,null,null,null,null,null,null,null,null,""]
[null,null,null,null,null,null,null,null,null,null,null,null,""]
[null,null,null,null,null,null,null,null,null,null,null,null,""]
[null,null,null,null,null,null,null,null,null,null,null,null,""]
[null,null,null,null,null,null,null,null,null,null,null,null,""]
[null,null,null,null,null,null,null,null,null,null,null,null,""]
[null,null,null,null,null,null,null,null,null,null,null,null,""]
[null,null,null,null,null,null,null,null,null,null,null,null,""]
[null,null,null,null,null,null,null,null,null,null,null,null,""]
[null,null,null,null,null,null,null,null,null,null,null,null,""]
[null,null,null,null,null,null,null,null,null,null,null,null,""]
[null,null,null,null,null,null,null,null,null,null,null,null,""]
[null,null,null,null,null,null,null,null,null,null,null,null,""]
[null,null,null,null,null,null,null,null,null,null,null,null,""]
[null,null,null,null,null,null,null,null,null,null,null,null,""]
[null,null,null,null,null,null,null,null,null,null,null,null,{"$f":"IFERROR(VLOOKUP(L194,LookupTable,2,0),\"\")","v":""}]
[null,null,null,null,null,null,null,null,null,null,null,null,""]
[null,null,null,null,null,null,null,null,null,null,null,null,""]
[null,null,null,null,null,null,null,null,null,null,null,null,""]
[null,null,null,null,null,null,null,null,null,null,null,null,""]
[null,null,null,null,null,null,null,null,null,null,null,null,""]
[null,null,null,null,null,null,null,null,null,null,null,null,""]
[null,null,null,null,null,null,null,null,null,null,null,null,""]
[null,null,null,null,null,null,null,null,null,null,null,null,""]
[null,null,null,null,null,null,null,null,null,null,null,null,""]
[null,null,null,null,null,null,null,null,null,null,null,null,""]
[null,null,null,null,null,null,null,null,null,null,null,null,""]
[null,null,null,null,null,null,null,null,null,null,null,null,""]
[null,null,null,null,null,null,null,null,null,null,null,null,""]
[null,null,null,null,null,null,null,null,null,null,null,null,""]
[null,null,null,null,null,null,null,null,null,null,null,null,""]
[null,null,null,null,null,null,null,null,null,null,null,null,""]
[null,null,null,null,null,null,null,null,null,null,null,null,""]
[null,null,null,null,null,null,null,null,null,null,null,null,""]
[null,null,null,null,null,null,null,null,null,null,null,null,""]
[null,null,null,null,null,null,null,null,null,null,null,null,""]
[null,null,null,null,null,null,null,null,null,null,null,null,""]
[null,null,null,null,null,null,null,null,null,null,null,null,""]
[null,null,null,null,null,null,null,null,null,null,null,null,""]
[null,null,null,null,null,null,null,null,null,null,null,null,""]
[null,null,null,null,null,null,null,null,null,null,null,null,""]
[null,null,null,null,null,null,null,null,null,null,null,null,""]
[null,null,null,null,null,null,null,null,null,null,null,null,""]
[null,null,null,null,null,null,null,null,null,null,null,null,""]
[null,null,null,null,null,null,null,null,null,null,null,null,""]
[null,null,null,null,null,null,null,null,null,null,null,null,""]
[null,null,null,null,null,null,null,null,null,null,null,null,""]
[null,null,null,null,null,null,null,null,null,null,null,null,""]
[null,null,null,null,null,null,null,null,null,null,null,null,""]
[null,null,null,null,null,null,null,null,null,null,null,null,""]
[null,null,null,null,null,null,null,null,null,null,null,null,""]
[null,null,null,null,null,null,null,null,null,null,null,null,""]
[null,null,null,null,null,null,null,null,null,null,null,null,""]
[null,null,null,null,null,null,null,null,null,null,null,null,""]
[null,null,null,null,null,null,null,null,null,null,null,null,""]
[null,null,null,null,null,null,null,null,null,null,null,null,""]
[null,null,null,null,null,null,null,null,null,null,null,null,""]
[null,null,null,null,null,null,null,null,null,null,null,null,""]
[null,null,null,null,null,null,null,null,null,null,null,null,""]
[null,null,null,null,null,null,null,null,null,null,null,null,""]
[null,null,null,null,null,null,null,null,null,null,null,null,""]
[null,null,null,null,null,null,null,null,null,null,null,null,""]
[null,null,null,null,null,null,null,null,null,null,null,null,""]
[null,null,null,null,null,null,null,null,null,null,null,null,""]
[null,null,null,null,null,null,null,null,null,null,null,null,""]
[null,null,null,null,null,null,null,null,null,null,null,null,""]
[null,null,null,null,null,null,null,null,null,null,null,null,""]
[null,null,null,null,null,null,null,null,null,null,null,null,""]
[null,null,null,null,null,null,null,null,null,null,null,null,""]
[null,null,null,null,null,null,null,null,null,null,null,null,""]
[null,null,null,null,null,null,null,null,null,null,null,null,""]
[null,null,null,null,null,null,null,null,null,null,null,null,""]
[null,null,null,null,null,null,null,null,null,null,null,null,""]
[null,null,null,null,null,null,null,null,null,null,null,null,""]
[null,null,null,null,null,null,null,null,null,null,null,null,""]
[null,null,null,null,null,null,null,null,null,null,null,null,""]

{"sheet":"LOOKUPiNFO","index":1,"n_rows":14,"n_cols":4,"rows_kept":14,"cut":false,"hidden":true,"merged":[]}
[null,"Issue","Action","Colouring In!"]
["1A","There is NO BP listed, or NO link for a BP","Entry will not be accepted (don’t, add even if they really have a profile on Pof10)","Entire row RED to reject entry"]
["1B","Has not competed in this event since 1st November 2019",null,"Entire row RED to reject entry"]
["2A","Power of 10 link entered BUT is INCORRECT","See if the correct page on Power of 10 CAN be found EASILY - if it is, overwrite the link with the correct link","Cell containing corrected link YELLOW (Column E & Column I)"]
["2B","Power of 10 link is INCORRECT & cannot be found","If correct Power of 10 link CANNOT be found EASILY, the entry will not be accepted","Entire row RED to reject entry"]
["3A","Updated BP since 1 November 2019","Update BP to correct time/distance as shown on Power of 10, overwriting the time/distance shown on the spreadsheet","Cell containing corrected BP YELLOW (Column I)"]
["3B","BP before 1 November 2019 ie NOT in last 3 years","If athlete has a time in the actual event, but NOT recorded since 1 November 2019, the entry will not be accepted","Entire row RED to reject entry"]
["4A","Performance Changed to be AFTER 1st November 2019","Check Power of 10 – if athlete has a time in the actual event, that was recorded  since 1 November 2019, overwrite submitted time with the correct BP ","Cell containing corrected BP YELLOW (Column I)"]
["4B","Changed to permitted BP or WA points converted Performance","If the BP submitted is not correct BUT a permitted BP for the equivalent event exists for that athlete, the entry will be accepted – update BP. (Use the WA Scoring Tables of Athletics or give converted performance)","Cell containing corrected BP YELLOW (Column I)"]
["4C","Not a permitted performance since 1 November 2019","If the BP submitted is not permitted, and/or no permitted BP for the event exists for that athlete, the entry will not be accepted","Entire row RED to reject entry"]
["5A","Wind-assisted BP (w) changed where possible to non (w) BP","Overwrite with non wind-assisted BP, providing that the time/distance was recorded since 1 November 2019.","Cell containing corrected BP YELLOW (Column I)"]
["5B",null,"If athlete has a non-wind assisted BP in the actual event, but recorded BEFORE 1 November 2019.","Entire row Orange to consider time/distance to enter"]
[6,"3rd 4th Athlete -Not met entry requirements",null,"Entire row BLUE "]
[7,"Unresolved issue","Ian/Maddi/Paul will look into it further","Entire row PURPLE"]

{"sheet":"M60m","index":2,"n_rows":107,"n_cols":5,"rows_kept":107,"cut":false,"hidden":false,"merged":[]}
["Race Number","First Name","Last Name","Institution","BP"]
[1,"Timi","Rotimi-Toviho","AECC","00:00:07.240"]
[2,"David","Boakye","Aston","00:00:07.010"]
[3,"Cameron","Jones","Bangor","00:00:07.090"]
[4,"Michael","Newton","Bangor","00:00:07.790"]
[5,"Joe","Carter","Bath","00:00:06.980"]
[6,"Joshua","Maggs","Bath","00:00:07.110"]
[7,"Muslim","Habib","Birmingham","00:00:06.840"]
[8,"Darian","Moore","Birmingham","00:00:06.880"]
[9,"Konyui","Shieh","Birmingham City","00:00:07.400"]
[10,"Anthony","Douglas","Bournemouth","00:00:06.900"]
[11,"Matthew","Clare","Bristol","00:00:07.760"]
[12,"Lio","Robinson","Bristol","00:00:07.730"]
[13,"Alex","Hanson","Brunel","00:00:06.980"]
[14,"Tyler","Panton","Brunel","00:00:06.800"]
[15,"Mounir","Hinedi","Cambridge","00:00:07.090"]
[16,"Chizute","Ogbedeh","Cambridge","00:00:07.150"]
[17,"Daniel","Brooks","Cardiff","00:00:06.850"]
[18,"Thomas","White","Cardiff","00:00:07.010"]
[19,"Alex","Azu","Cardiff Met","00:00:07.100"]
[20,"Thomas","Payne","Cardiff Met","00:00:06.970"]
[21,"Joshua","Hawkins","Chichester","00:00:07.010"]
[22,"Tom","Fisher","Coventry","00:00:07.750"]
[23,"Joel","Ogunfemi","Coventry","00:00:07.020"]
[24,"Ayomide","Eluyera","Durham","00:00:07.700"]
[25,"Matthew","Harris","Durham","00:00:06.990"]
[26,"Tom","Cooney","East Anglia","00:00:07.140"]
[27,"Chris","Osei","East Anglia","00:00:07.240"]
[28,"Korede","Awe","East London","00:00:06.720"]
[29,"Jack","Gibbs","East London","00:00:07.030"]
[30,"Frankie","Arkwright","Edge Hill","00:00:07.760"]
[31,"Oliver","Coyne","Edge Hill","00:00:08.080"]
[32,"Logan","Fearn","Edinburgh","00:00:07.180"]
[33,"Alexander","Poustie-Williamson","Edinburgh","00:00:07.290"]
[34,"Kam","Hei Lai","Essex","00:00:08.040"]
[35,"Charlie","Bates","Exeter","00:00:07.500"]
[36,"Josh","Shaghaghi","Exeter","00:00:07.180"]
[37,"Sonny","Campbell","Glasgow","00:00:07.500"]
[38,"Ethan","Pottie","Glasgow","00:00:06.820"]
[39,"Jamie","Stevenson","Glasgow Caledonian","00:00:07.040"]
[40,"Finlay","Waugh","Glasgow Caledonian","00:00:07.260"]
[41,"james","hanson","Hertfordshire","00:00:06.700"]
[42,"Harry","Williams","Huddersfield","00:00:07.190"]
[43,"David","Morgan-Harrison","Hull","00:00:06.670"]
[44,"Harvey","Jupe","Kent","00:00:07.140"]
[45,"Clinton","Obijiaku","Kent","00:00:07.130"]
[46,"Kaito","Kawakami","King’s College","00:00:07.160"]
[47,"Pierre","Walker","King’s College","00:00:07.210"]
[48,"Jonathan","Esiwe","Leeds","00:00:07.320"]
[49,"Patrick","Pardillo","Leeds","00:00:07.230"]
[51,"Jordan","Yates","Leeds Beckett","00:00:07.380"]
[52,"Carlos","Ayao","Leicester","00:00:07.220"]
[53,"Nikita","Martynov","Leicester","00:00:07.160"]
[54,"Nathanael","Adegoke","Liverpool","00:00:08.020"]
[55,"Jack","Gosden","Liverpool","00:00:07.240"]
[56,"Charles","Utomi","Liverpool John Moores","00:00:07.700"]
[57,"Sean","Anyaogu","Loughborough","00:00:06.880"]
[58,"Emmanuel","Duruiheoma","Loughborough","00:00:06.730"]
[59,"Mohamad","Shuffri Bin Suhaidi","LSE","00:00:08.260"]
[60,"Abraham","Orekan","Manchester","00:00:07.600"]
[61,"Tariq","Wild","Manchester","00:00:06.980"]
[62,"Glenford","Hughes","Middlesex","00:00:07.220"]
[63,"John","Jesse","Middlesex","00:00:06.790"]
[64,"sebastien","philo","Newcastle","00:00:07.610"]
[65,"Lenny","Saville","Newcastle","00:00:07.720"]
[66,"Adam","Howe","Northumbria","00:00:07.620"]
[67,"Kwesi","Biney","Nottingham","00:00:07.100"]
[68,"William","Wilshere","Nottingham","00:00:07.180"]
[69,"Richard","Akinyebo","Nottingham Trent","00:00:06.730"]
[70,"Ibukun","Opadiran","Nottingham Trent","00:00:06.980"]
[71,"Orlando","Bell","Oxford","00:00:07.140"]
[72,"Jake","Watson","Oxford","00:00:06.920"]
[73,"Pedro","Davis","Oxford Brookes","00:00:07.820"]
[74,"Sean","Harvey","Oxford Brookes","00:00:07.730"]
[75,"Victor","Zhang","Plymouth","00:00:07.750"]
[76,"Dominic","Barth","Portsmouth","00:00:07.120"]
[77,"Austin","Ideh","Portsmouth","00:00:07.600"]
[78,"Oloruntobi","Ayorinde","Reading","00:00:07.340"]
[79,"Ollie","D’Rozario","Reading","00:00:07.270"]
[80,"Adeola","Siaka-Momoh","Robert Gordon","00:00:07.550"]
[81,"Aiden","Kellett","Royal Holloway","00:00:07.230"]
[82,"Alwaaz","Rahman","Royal Holloway","00:00:08.220"]
[83,"Jack","Brown-Schofield","Salford","00:00:07.200"]
[84,"Isaac","Marsh","Sheffield","00:00:07.020"]
[85,"Jake","Sisson","Sheffield","00:00:07.260"]
[86,"Harry","Handsaker","Sheffield Hallam","00:00:07.180"]
[87,"Elijah","Lewis","Sheffield Hallam","00:00:07.600"]
[88,"Kofi","Afrifa","St Andrews","00:00:07.590"]
[89,"Oluwatobi","Idowu","St Andrews","00:00:07.460"]
[90,"ade","Ajayi","St Mary’s","00:00:07.900"]
[91,"Kenneth","Ball","St Mary’s","00:00:07.430"]
[92,"Daniel","Bruce","Stirling","00:00:07.240"]
[93,"Cole","Milne","Stirling","00:00:07.220"]
[94,"John","Duthie","Strathclyde","00:00:07.770"]
[95,"Virgil","Doe","Surrey","00:00:07.430"]
[96,"Nicholas","Kamara","Surrey","00:00:07.390"]
[97,"Ethan","Craven","Swansea","00:00:07.340"]
[98,"Kelvin","Nti Tannor","Swansea","00:00:07.070"]
[99,"Ochuko","Edward","UCL","00:00:07.400"]
[100,"Joseph","Herbert","UCL","00:00:07.480"]
[101,"Craig","Ezissi","UCLan","00:00:07.430"]
[102,"Craig","Gill","UCLan","00:00:07.070"]
[103,"Sam","Brudney","UWE","00:00:07.420"]
[104,"Kanish","Kumar","UWE","00:00:07.940"]
[105,"Cameron","Colville","UWS","00:00:07.010"]
[106,"Charles","Nortey","Warwick","00:00:06.910"]
[107,"Jack","Forrest","Wolverhampton","00:00:07.080"]

{"sheet":"M200m","index":3,"n_rows":83,"n_cols":5,"rows_kept":83,"cut":false,"hidden":false,"merged":[]}
["Race Number","First Name","Last Name","Institution","BP"]
[8,"Darian","Moore","Birmingham","00:00:21.790"]
[9,"Konyui","Shieh","Birmingham City","00:00:23.730"]
[18,"Thomas","White","Cardiff","00:00:21.930"]
[28,"Korede","Awe","East London","00:00:21.580"]
[30,"Frankie","Arkwright","Edge Hill","00:00:25.080"]
[33,"Alexander","Poustie-Williamson","Edinburgh","00:00:22.550"]
[39,"Jamie","Stevenson","Glasgow Caledonian","00:00:22.230"]
[40,"Finlay","Waugh","Glasgow Caledonian","00:00:21.300"]
[45,"Clinton","Obijiaku","Kent","00:00:22.880"]
[47,"Pierre","Walker","King’s College","00:00:22.370"]
[62,"Glenford","Hughes","Middlesex","00:00:23.070"]
[72,"Jake","Watson","Oxford","00:00:21.870"]
[78,"Oloruntobi","Ayorinde","Reading","00:00:24.190"]
[80,"Adeola","Siaka-Momoh","Robert Gordon","00:00:23.480"]
[81,"Aiden","Kellett","Royal Holloway","00:00:23.600"]
[82,"Alwaaz","Rahman","Royal Holloway","00:00:26.630"]
[84,"Isaac","Marsh","Sheffield","00:00:22.090"]
[90,"ade","Ajayi","St Mary’s","00:00:26.750"]
[91,"Kenneth","Ball","St Mary’s","00:00:22.430"]
[94,"John","Duthie","Strathclyde","00:00:24.770"]
[95,"Virgil","Doe","Surrey","00:00:23.570"]
[97,"Ethan","Craven","Swansea","00:00:22.790"]
[99,"Ochuko","Edward","UCL","00:00:24.400"]
[100,"Joseph","Herbert","UCL","00:00:24.370"]
[101,"Craig","Ezissi","UCLan","00:00:23.680"]
[102,"Craig","Gill","UCLan","00:00:22.620"]
[104,"Kanish","Kumar","UWE","00:00:25.660"]
[106,"Charles","Nortey","Warwick","00:00:22.010"]
[107,"Jack","Forrest","Wolverhampton","00:00:22.120"]
[109,"David","Naylor","Edge Hill","00:23:23.210"]
[112,"Theo","Danquah","Bangor","00:00:22.560"]
[120,"Jason","Kalala","Brunel","00:00:21.260"]
[123,"Geiovannie","Sealy","Brunel","00:00:21.920"]
[126,"Femi","Akinbobola","Cardiff Met","00:00:22.430"]
[127,"Blake","Brown","Cardiff Met","00:00:21.450"]
[139,"Nathan","Gavaghan","Leeds Beckett","00:00:22.570"]
[144,"Jaden","Moonsammy","Liverpool","00:00:23.970"]
[147,"Eddie","Cassidy","Loughborough","00:00:21.970"]
[149,"Harry","Taylor","Loughborough","00:00:21.460"]
[163,"Luca","Prior","Anglia Ruskin","00:00:24.990"]
[175,"Robert","O'Brien","LSE","00:00:23.700"]
[391,"Matthew","Alvarez","Bath","00:00:21.770"]
[398,"Laurie","Sutcliffe","Bath","00:00:22.220"]
[468,"Bryn","Smith","Brighton","00:00:21.500"]
[534,"Jonathan","Knox","Cardiff","00:00:22.240"]
[578,"Jacob","Norcliffe","Chichester","00:00:23.750"]
[602,"Evan","Blackman","Durham","00:00:21.180"]
[613,"Ben","Pearson","Durham","00:00:22.480"]
[629,"Tristan","Mclellan","East Anglia","00:00:23.660"]
[631,"Alex","Stapleton","East Anglia","00:00:24.200"]
[633,"Marvin","Addison","East London","00:00:20.910"]
[664,"Robin","Snedden","Edinburgh","00:00:22.520"]
[692,"Cellan","Robinson","Exeter","00:00:23.920"]
[695,"Rory","Sturgeon","Exeter","00:00:23.900"]
[706,"Andrew","Baird","Glasgow","00:00:22.940"]
[716,"Simon","Okiti","Glasgow","00:00:22.830"]
[727,"Jubril","Adeniji","Hertfordshire","00:00:23.180"]
[733,"Brody","Hinson","Hull","00:00:22.320"]
[752,"Cole","Sinnott","Kent","00:00:22.400"]
[774,"Caleb","Watson","King’s College","00:00:23.900"]
[789,"Tom","Pritchard","Leeds","00:00:23.100"]
[822,"Darius","Shelton","Leeds Beckett","00:00:23.990"]
[836,"Maurizio","Corrodus","Liverpool","00:00:23.870"]
[931,"Gerard","Campbell","Manchester","00:00:24.700"]
[939,"William","Thorp","Manchester","00:00:23.760"]
[967,"James","Malpass","Newcastle","00:00:23.900"]
[969,"Adain","Russell","Newcastle","00:00:26.260"]
[979,"James","Miller","Northumbria","00:00:22.900"]
[993,"Joel","Akande","Nottingham","00:00:22.970"]
[1002,"Aron","Traves","Nottingham","00:00:24.010"]
[1007,"Uzoh","Herbert","Nottingham Trent","00:00:22.770"]
[1011,"David","Owusu-afiriyie","Nottingham Trent","00:00:24.120"]
[1044,"Elliot","Russell","Oxford Brookes","00:00:29.080"]
[1061,"Andrew","Baldwin","Robert Gordon","00:00:23.600"]
[1086,"Oliver","Coster","Sheffield","00:00:23.380"]
[1114,"Corey","Nealon-Richards","Sheffield Hallam","00:00:21.730"]
[1117,"Lewis","Thorn","Sheffield Hallam","00:00:22.140"]
[1120,"Laval","Githui","Solent","00:00:25.500"]
[1164,"Stewart","Greenhalgh","Stirling","00:00:21.490"]
[1166,"Harry","MacConnell","Stirling","00:00:25.170"]
[1197,"Yusuf","Hussien","Swansea","00:00:23.360"]
[1235,"Joshua","Orowale","Warwick","00:00:23.700"]

{"sheet":"M400m","index":4,"n_rows":72,"n_cols":5,"rows_kept":72,"cut":false,"hidden":false,"merged":[]}
["Race Number","First Name","Last Name","Institution","BP"]
[129,"Daniel","Kolosov","Chichester","00:00:52.370"]
[366,"Jaran","Singh","Aston","00:00:51.540"]
[373,"Omanchi","Agbaji","Bangor","00:00:57.320"]
[395,"Alex","O’Callaghan-Brown","Bath","00:00:49.100"]
[435,"Panashe","andy Majuru","Birmingham","00:00:49.840"]
[436,"Cameron","Bailey","Birmingham","00:00:47.850"]
[477,"charlie","johnson","Bristol","00:00:54.290"]
[489,"Dawood","Chohan","Brunel","00:00:50.150"]
[499,"Kristian","Samwell-Nash","Brunel","00:00:48.740"]
[516,"Tom","Wilkins","Cambridge","00:00:54.120"]
[537,"Jared","Nicholls","Cardiff","00:00:53.760"]
[539,"Will","Parkinson","Cardiff","00:00:53.940"]
[563,"Ben","Hawkes","Cardiff Met","00:00:47.360"]
[565,"Jacob","Lamboll","Cardiff Met","00:00:48.610"]
[582,"Alex","Byrom","Coventry","00:00:53.880"]
[603,"William","Cooke","Durham","00:00:52.530"]
[607,"Daniel","Hindle","Durham","00:00:50.650"]
[628,"James","Lee","East Anglia","00:00:58.500"]
[631,"Alex","Stapleton","East Anglia","00:00:53.470"]
[644,"Callum","Jefferies","Edge Hill","00:00:59.130"]
[646,"Bradley","Rising-Tchernucha","Edge Hill","00:00:55.330"]
[661,"Ben","Knowles","Edinburgh","00:00:50"]
[664,"Robin","Snedden","Edinburgh","00:00:51.200"]
[685,"Coleman","Corry","Exeter","00:00:51.430"]
[688,"Callum","Gregson","Exeter","00:00:52.100"]
[713,"Reuben","MacIntyre","Glasgow","00:00:52"]
[714,"Donald","Maclean","Glasgow","00:00:55"]
[726,"Lewis","Thomson","Heriot-Watt","00:00:50.290"]
[732,"Adam","Fox","Hull","00:00:49.320"]
[753,"Ewan","Wood","Kent","00:00:48.880"]
[772,"kareem","Selman-Jackson","King’s College","00:00:48.620"]
[785,"Alejandro","Cogolludo-Blank","Leeds","00:00:55.600"]
[792,"Alexander","Wilson","Leeds","00:00:50.870"]
[817,"Amaha","Lawrence","Leeds Beckett","00:00:49.670"]
[819,"Joseph","Prince","Leeds Beckett","00:00:50.400"]
[836,"Maurizio","Corrodus","Liverpool","00:00:52.400"]
[847,"Jack","Gilland","Liverpool John Moores","00:00:50.020"]
[895,"Ellis","Greatrex","Loughborough","00:00:47.090"]
[898,"Ben","Higgins","Loughborough","00:00:46.380"]
[923,"Finn","Rodgers","LSE","00:00:52.930"]
[924,"Charles","Yu","LSE","00:00:58.600"]
[934,"Tom","Hunter","Manchester","00:00:49.940"]
[945,"Nathaniel","Dyas","Manchester Met","00:00:49.110"]
[965,"Jack","Coates","Newcastle","00:00:52.800"]
[970,"Matthew","Stacey","Newcastle","00:00:54.530"]
[980,"Joseph","Mitchell","Northumbria","00:00:53.970"]
[998,"Benjamin","Gardiner","Nottingham","00:00:48.600"]
[1001,"Cameron","Rawson","Nottingham","00:00:51.710"]
[1029,"RYAN","CHERIAN","Oxford","00:00:49.530"]
[1036,"Marco","Siniscalchi","Oxford","00:00:50.350"]
[1049,"Barnaby","Dougal","Portsmouth","00:00:53.300"]
[1053,"Louis","Menzies Walker","Queen Mary","00:00:48.620"]
[1063,"James","McIntosh","Robert Gordon","00:00:49.750"]
[1066,"George","Sayles","Royal Holloway","00:01:07.180"]
[1093,"nathan","scott","Sheffield","00:00:50.290"]
[1096,"Ben","Whittaker","Sheffield","00:00:54"]
[1104,"Hakan","Dalbal","Sheffield Hallam","00:00:47.520"]
[1105,"Benjamin","Davys","Sheffield Hallam","00:00:49.890"]
[1121,"Jack","Higgins","Solent","00:00:48.290"]
[1124,"Chuka","Akunna","St Andrews","00:00:51.590"]
[1127,"Patrick","Millar","St Andrews","00:00:53.650"]
[1139,"Alex","Davis","St Mary’s","00:00:56.100"]
[1145,"Connor","Neal","St Mary’s","00:00:47.270"]
[1169,"Finn","Rivett","Stirling","00:00:57.690"]
[1198,"Mitchell","Lawrence","Swansea","00:00:49.560"]
[1209,"Brook","Li","UCL","00:00:50.910"]
[1210,"Zijie","Lu","UCL","00:00:56.730"]
[1212,"Sean","Collado","UCLan","00:00:56.300"]
[1224,"Joshua","Tudor","UWE","00:01:05.100"]
[1234,"Fuad","Busoir","Warwick","00:00:52.560"]
[1236,"George","Seery","Warwick","00:00:49.090"]

{"sheet":"M800m","index":5,"n_rows":68,"n_cols":5,"rows_kept":68,"cut":false,"hidden":false,"merged":[]}
["Race Number","First Name","Last Name","Institution","BP"]
[377,"Matthew","McKenzie","Bangor","00:02:31.640"]
[378,"Alex","Moseley","Bangor","00:01:57.210"]
[392,"Jonny","Brook","Bath","00:01:57.120"]
[393,"Theo","Cheshire","Bath","00:01:57"]
[442,"Henry","Fisher","Birmingham","00:01:49.390"]
[453,"Archie","Parkinson","Birmingham","00:01:51.320"]
[464,"Prince","Laryea","Birmingham City","00:01:58.720"]
[467,"Dylan","Bowley","Brighton","00:01:58.560"]
[492,"Dan","Howells","Brunel","00:01:47.080"]
[512,"Adam","Dray","Cambridge","00:01:49.410"]
[513,"Angus","Harrington","Cambridge","00:01:48.580"]
[541,"Josh","Smith","Cardiff","00:01:57.240"]
[542,"Sam","Tempest","Cardiff","00:02:00.940"]
[567,"James","Naylor","Cardiff Met","00:02:05.630"]
[579,"Joe","Yeaman","Chichester","00:01:56.230"]
[584,"Jamie","Harper","Coventry","00:01:53.450"]
[604,"Charlie","Crick","Durham","00:01:50.120"]
[616,"Ben","Smith","Durham","00:01:55.270"]
[626,"Archie","George","East Anglia","00:02:17.400"]
[630,"Thomas","Palmer","East Anglia","00:02:00.100"]
[644,"Callum","Jefferies","Edge Hill","00:02:09.400"]
[656,"Chris","Bain","Edinburgh","00:01:52.490"]
[659,"Francisco","Camacho","Edinburgh","00:02:04.580"]
[690,"Jolyon","Leavesley","Exeter","00:01:57.950"]
[694,"Tom","Slater","Exeter","00:02:02.620"]
[711,"Sandy","Holl","Glasgow","00:01:57.300"]
[712,"Oscar","Logan","Glasgow","00:01:55.040"]
[723,"Liam","Kearns","Gloucestershire","00:02:44.090"]
[767,"Max","Batty","King’s College","00:01:59.600"]
[775,"Joel","Whittaker-Naylor","King’s College","00:02:18.090"]
[790,"Matthew","Spendlove","Leeds","00:01:57.890"]
[791,"Sam","Stephens","Leeds","00:01:52.490"]
[812,"Harry","Hayes","Leeds Beckett","00:01:56.650"]
[814,"adam","knights","Leeds Beckett","00:02:05.290"]
[837,"Alfie","Mumford","Liverpool","00:02:08.270"]
[848,"Keelan","Hopewell","Liverpool John Moores","00:01:57.700"]
[890,"Simon","Coppard","Loughborough","00:01:48.700"]
[918,"Jamie","Webb","Loughborough","00:01:44.130"]
[935,"Tom","McKeveney","Manchester","00:02:00.050"]
[947,"Mark","Lloyd","Manchester Met","00:02:12.050"]
[951,"Daniel","Newman","Marjon","00:01:55.890"]
[968,"Aidan","O’Brien","Newcastle","00:01:57.610"]
[981,"Ben","Waterfield","Northumbria","00:02:03.500"]
[992,"Niall","Ackroyd","Nottingham","00:02:00.600"]
[1006,"Elliot","Doughty","Nottingham Trent","00:02:00.430"]
[1027,"Tom","Barrett","Oxford","00:01:59"]
[1042,"Alexander","Donnelly","Oxford Brookes","00:02:03.100"]
[1045,"Harry","Swindells","Oxford Brookes","00:02:08.900"]
[1060,"Jack","Bartle","Reading","00:02:14.100"]
[1068,"Jordi","Evans Rodriguez","Salford","00:01:58.270"]
[1089,"Laurence","Manley","Sheffield","00:02:02.540"]
[1091,"Matthew","Mustard","Sheffield","00:01:53.990"]
[1110,"Joseph","Lane","Sheffield Hallam","00:01:58.980"]
[1113,"Chris","Nealon","Sheffield Hallam","00:01:59.480"]
[1126,"Luke","Lawrence","St Andrews","00:02:11.840"]
[1128,"Thomas","O'Reilly","St Andrews","00:01:56.060"]
[1140,"Shaun","Gee","St Mary’s","00:01:48.590"]
[1141,"Tom","Gillbanks","St Mary’s","00:01:56.340"]
[1165,"Euan","Hood","Stirling","00:01:56.690"]
[1167,"Jack","Muir","Stirling","00:01:59.800"]
[1180,"Seumas","Mackay","Strathclyde","00:01:48.510"]
[1196,"Shaun","Hudson","Swansea","00:01:53.790"]
[1208,"Alfred","Corrigan","UCL","00:02:12.100"]
[1220,"Luke","Burgess","UWE","00:02:04.990"]
[1227,"Ross","O’Brien","UWS","00:01:57.790"]
[1250,"Thomas","Lee","York","00:02:01.520"]
[1251,"William","Randall","York","00:01:58.720"]

{"sheet":"M1500m","index":6,"n_rows":50,"n_cols":5,"rows_kept":50,"cut":false,"hidden":false,"merged":[]}
["Race Number","First Name","Last Name","Institution","BP"]
[376,"Joshua","Jackson","Bangor","00:05:09.270"]
[437,"Tyler","Bilyard","Birmingham","00:03:46.640"]
[451,"Elliot","Moran","Birmingham","00:03:50.830"]
[478,"Alexander","Wood","Bristol","00:03:57.220"]
[492,"Dan","Howells","Brunel","00:03:43.530"]
[511,"Cillian","Doherty","Cambridge","00:03:55.360"]
[530,"Aaron","enser","Cardiff","00:03:54.840"]
[540,"Jacob","Reynolds","Cardiff","00:03:56.500"]
[560,"Harry","Dyall","Cardiff Met","00:04:03.180"]
[561,"Adam","Ede","Cardiff Met","00:03:56"]
[575,"Isaac","Brown","Chichester","00:04:00.980"]
[584,"Jamie","Harper","Coventry","00:03:55.510"]
[611,"Edward","Leech","Durham","00:03:58.700"]
[615,"Peter","Smallcombe","Durham","00:04:05.210"]
[658,"Eddie","Brown","Edinburgh","00:04:14.560"]
[665,"Andrew","Thomson","Edinburgh","00:03:52"]
[687,"William","Douglas","Exeter","00:04:04.990"]
[691,"Harley","Norman","Exeter","00:03:53.830"]
[705,"Josh","Adams","Glasgow","00:04:13.950"]
[721,"kie","Francis","Gloucestershire","00:04:29.700"]
[724,"Isaac","Nasmyth-Miller","Gloucestershire","00:04:55.110"]
[766,"Darius","Amrolia","King’s College","00:04:59.600"]
[770,"Jose","Godoy","King’s College","00:04:30.600"]
[811,"Will","Haw","Leeds Beckett","00:04:19.120"]
[838,"jake","stafford","Liverpool","00:04:09.560"]
[840,"Mackenzie","Woodward","Liverpool","00:04:03.690"]
[890,"Simon","Coppard","Loughborough","00:03:43.150"]
[912,"David","Race","Loughborough","00:03:47.260"]
[936,"Joshua","Morgan","Manchester","00:04:33.950"]
[964,"Sean","Barry","Newcastle","00:04:28.300"]
[978,"Angus","McKenzie","Northumbria","00:04:52.200"]
[1000,"Joseph","Owen","Nottingham","00:03:53.640"]
[1027,"Tom","Barrett","Oxford","00:04:14.300"]
[1038,"Miles","Weatherseed","Oxford","00:03:42.920"]
[1051,"Ben","West","Portsmouth","00:04:30.160"]
[1062,"Luke","Davidson","Robert Gordon","00:03:51.470"]
[1095,"Harry","Sweeney","Sheffield","00:04:14.400"]
[1103,"Connor","Anderson","Sheffield Hallam","00:04:19.170"]
[1116,"Justin","Strover","Sheffield Hallam","00:04:12.900"]
[1142,"Oliver","Lill","St Mary’s","00:03:48.360"]
[1148,"Elliot","Pocock","St Mary’s","00:03:49.790"]
[1162,"Mark","Carberry","Stirling","00:04:11.780"]
[1163,"James","Grant","Stirling","00:04:08.500"]
[1181,"Jack","Patton","Strathclyde","00:03:45.530"]
[1184,"Xavier","Booth","Sunderland","00:04:29"]
[1194,"Matthew","Houchell","Swansea","00:03:58.230"]
[1227,"Ross","O’Brien","UWS","00:04:01.530"]
[1243,"Harvey","Bowron","Worcester","00:04:51.080"]
[1248,"Cameron","Bryson","York","00:04:14.960"]

{"sheet":"M3000m","index":7,"n_rows":33,"n_cols":5,"rows_kept":33,"cut":false,"hidden":false,"merged":[]}
["Race Number","First Name","Last Name","Institution","BP"]
[367,"Calum","Upton","Aston","00:09:14.870"]
[396,"Robin","Regan","Bath","00:08:42.870"]
[439,"Thomas","Bridger","Birmingham","00:08:18.100"]
[443,"Isaac","Hirshman Chandler","Birmingham","00:08:09.140"]
[488,"Finlay","Barritt-cross","Brunel","00:09:32.240"]
[510,"Jeremy","Dempsey","Cambridge","00:08:02.970"]
[531,"James","Heneghan","Cardiff","00:08:04.340"]
[535,"Ciaran","Lewis","Cardiff","00:08:28.250"]
[609,"Alex","Kilby","Durham","00:08:42.510"]
[614,"Cameron","Ross Boyek","Durham","00:08:27.320"]
[645,"Brandon","Quinton","Edge Hill","00:08:42.940"]
[655,"Steven","Denby","Edinburgh","00:08:34.190"]
[684,"Devin","Coombes","Exeter","00:08:58"]
[686,"Thomas","crockett","Exeter","00:08:39.580"]
[768,"William","Broom","King’s College","00:08:39.500"]
[773,"MINTU","Sidhu","King’s College","00:09:12.550"]
[813,"Ethan","Hussey","Leeds Beckett","00:08:28.760"]
[821,"Charlie","Roberts","Leeds Beckett","00:08:25.750"]
[829,"Timothé","Allen","Leicester","00:09:42.490"]
[897,"Max","Heyden","Loughborough","00:08:14.880"]
[906,"Alex","Melloy","Loughborough","00:08:10.170"]
[966,"Jack","Douglas","Newcastle","00:08:42.510"]
[972,"Monte","Watson","Newcastle","00:09:26.920"]
[997,"Will","Bowran","Nottingham","00:09:02.200"]
[1033,"Matt","Fuller","Oxford","00:09:04.250"]
[1094,"Will","Simm","Sheffield","00:08:34.730"]
[1106,"Matthew","Everett","Sheffield Hallam","00:09:35.400"]
[1115,"George","Phillips","Sheffield Hallam","00:08:26.740"]
[1143,"Henry","Mcluckie","St Mary’s","00:08:00.550"]
[1146,"Frank","O’Brien","St Mary’s","00:08:39.180"]
[1192,"Luca","Cortellese","Swansea","00:08:42.320"]
[1221,"Chris","Carter","UWE","00:09:39.730"]

{"sheet":"M60mH","index":8,"n_rows":25,"n_cols":5,"rows_kept":25,"cut":false,"hidden":false,"merged":[]}
["Race Number","First Name","Last Name","Institution","BP"]
[108,"Craig","Moncur","Birmingham","00:00:08.890"]
[109,"David","Naylor","Edge Hill","00:00:08.600"]
[110,"Benjamin","Whittaker","Edge Hill","00:00:09.450"]
[163,"Luca","Prior","Anglia Ruskin","00:00:09.370"]
[164,"Angel","Diaz","Birmingham","00:00:08.020"]
[165,"Monty","Ogunbanjo","Brunel","00:00:08.320"]
[166,"Josh","Watson","Brunel","00:00:08.660"]
[167,"Oli","Hector","Cambridge","00:00:09.470"]
[168,"Jake","Cover","Cardiff Met","00:00:08.350"]
[169,"Callum","Holder","Cardiff Met","00:00:07.940"]
[170,"William","Adeyeye","East London","00:00:08.090"]
[171,"Marko","Stankovic","Exeter","00:00:09.320"]
[172,"Rico","Cottell","Leeds","00:00:08.210"]
[173,"Cameron","Fillery","Loughborough","00:00:07.810"]
[174,"Tom","Wilcock","Loughborough","00:00:07.900"]
[175,"Robert","O'Brien","LSE","00:00:09.580"]
[176,"Joshua","Armstrong","Nottingham","00:00:07.970"]
[177,"Joseph","Agbodza","Nottingham Trent","00:00:08.010"]
[178,"Will","Parry","Oxford","00:00:09.100"]
[179,"Owen","Sproston","Staffordshire","00:00:08.430"]
[180,"Eren","Agirbas","Strathclyde","00:00:07.200"]
[181,"Jack","Houghton","Swansea","00:00:09.030"]
[182,"Hamish","Rogers","UCL","00:00:10.700"]
[183,"Josh","Inpong-Pirard","Warwick","00:00:09.340"]

{"sheet":"MHJ","index":9,"n_rows":35,"n_cols":5,"rows_kept":35,"cut":false,"hidden":false,"merged":[]}
["Race Number","First Name","Last Name","Institution","BP"]
[885,"Kelechi","Aguocha","Loughborough",2.2200000000000002]
[1010,"Lionel","Owona","Nottingham Trent",2.1800000000000002]
[887,"Sam","Brereton","Loughborough",2.17]
[771,"Dominic","Ogbechie","King’s College",2.17]
[583,"Rory","Dwyer","Coventry",2.16]
[1223,"Adam","Jones","UWE",2.12]
[446,"Kimani","Jack","Birmingham",2.1]
[999,"Sean","Oceng-Engena","Nottingham",2.0699999999999998]
[570,"Owen","Southern","Cardiff Met",2.06]
[815,"Tom","Kwissa","Leeds Beckett",2.06]
[1012,"Harry","Whyley","Nottingham Trent",2.0299999999999998]
[720,"Gavin","Wilson","Glasgow Caledonian",2]
[995,"Oluwajoba","Ashiru","Nottingham",2]
[140,"Morgan","Williams","Leeds Beckett",2]
[515,"Philip","Odugbile","Cambridge",2]
[532,"Rory","Howorth","Cardiff",1.97]
[1112,"James","Margrave","Sheffield Hallam",1.95]
[1231,"Fidunu","Abidekun","Warwick",1.95]
[184,"Evan","Campbell","Birmingham",1.91]
[688,"Callum","Gregson","Exeter",1.9]
[1083,"Luke","Burden","Sheffield",1.9]
[965,"Jack","Coates","Newcastle",1.9]
[141,"Peter","Adeosun","Leicester",1.87]
[1031,"Ayman","El Amrani","Oxford",1.81]
[715,"Gordon","Manson","Glasgow",1.8]
[1088,"Jacob","Ludlam","Sheffield",1.8]
[182,"Hamish","Rogers","UCL",1.71]
[130,"Stan-alex","Nanga","Edinburgh",1.7]
[722,"Andrew","Jay","Gloucestershire",1.7]
[1067,"Aleksis","Vilnitis","Royal Holloway",1.7]
[]
[null,null,null,null,2.12]
[]
[null,null,null,null,1.58]

{"sheet":"MLJ","index":10,"n_rows":49,"n_cols":5,"rows_kept":49,"cut":false,"hidden":false,"merged":[]}
["Race Number","First Name","Last Name","Institution","BP"]
[771,"Dominic","Ogbechie","King’s College",7.49]
[434,"Oreofeoluwa","Adepegba","Birmingham",7.39]
[1043,"Toby","Hiller","Oxford Brookes",7.36]
[846,"Harvey","Darroch","Liverpool John Moores",7.26]
[1198,"Mitchell","Lawrence","Swansea",7.14]
[399,"Ben","Sutton","Bath",7.13]
[891,"Sam","Danson","Loughborough",7.13]
[497,"Dillon","Ryan","Brunel",7.08]
[459,"Alfie","Wood","Birmingham",7.06]
[896,"Calum","Henderson","Loughborough",7.05]
[1097,"Rob","Worman","Sheffield",7.01]
[532,"Rory","Howorth","Cardiff",7]
[118,"Joshua","Barrett-Mowatt","Brunel",6.97]
[718,"Euan","Urquhart","Glasgow",6.94]
[543,"enrico","vena","Cardiff",6.89]
[994,"Michael","Anderson","Nottingham",6.87]
[971,"alfie","ward","Newcastle",6.85]
[922,"Joel","Bright-Davies","LSE",6.84]
[590,"Jonathan","Cochrane","Dundee",6.83]
[1030,"Adam","Coates","Oxford",6.8]
[839,"Luke","Suarez","Liverpool",6.74]
[769,"Chinedu","Festus Okereke","King’s College",6.72]
[136,"Stephen","Simmons","Kent",6.7]
[623,"Ignatius","Abebrese","East Anglia",6.63]
[79,"Ollie","D’Rozario","Reading",6.47]
[568,"Daniel","Perry","Cardiff Met",6.43]
[365,"Thomas","Hufford","Anglia Ruskin",6.3]
[1028,"Oliver","Bazin","Oxford",6.28]
[1046,"Charles","Asante Amoabeng","Plymouth",6.28]
[1050,"Nathan","Standing","Portsmouth",6.15]
[1067,"Aleksis","Vilnitis","Royal Holloway",6.12]
[1084,"Nicholas","Butler","Sheffield",6.06]
[92,"Daniel","Bruce","Stirling",6.01]
[710,"Jon","Dixon","Glasgow",5.96]
[928,"N’Adoi","Aboagye","Manchester",5.96]
[624,"Zak","Collins-iddi","East Anglia",5.79]
[967,"James","Malpass","Newcastle",5.78]
[514,"Baker","Lubwama","Cambridge",5.73]
[105,"Cameron","Colville","UWS",5.7]
[103,"Sam","Brudney","UWE",5.67]
[689,"Leo","Joscelyne","Exeter",5.66]
[183,"Josh","Inpong-Pirard","Warwick",5.63]
[786,"Harry","Daisley","Leeds",5.46]
[1241,"Paul","Kernick","Winchester",5.46]
[1122,"Charlie","Major","Solent",5.1100000000000003]
[]
[]
[null,null,null,null,7.15]

{"sheet":"MTJ","index":11,"n_rows":34,"n_cols":5,"rows_kept":34,"cut":false,"hidden":false,"merged":[]}
["Race Number","First Name","Last Name","Institution","BP"]
[919,"Archie","Yeo","Loughborough",15.51]
[460,"Josh","Woods","Birmingham",15.2]
[490,"Toby","Dronfield","Brunel",15.07]
[1207,"Jai","Benson","UCL",14.86]
[901,"Deshawn","Lascelles","Loughborough",14.85]
[363,"Morgan","Hayward","AECC",14.71]
[538,"Nahbi","Odeh","Cardiff",14.62]
[580,"Aaron","Ashmead-Shoye","City",14.6]
[623,"Ignatius","Abebrese","East Anglia",14.5]
[518,"Georgios","Zaphiris","Cambridge",14.34]
[448,"Joshua","Knox","Birmingham",14.04]
[465,"Zavier","Moore","Birmingham City",14.03]
[500,"Shawn","Twumasi Ampofo","Brunel",14.03]
[572,"Jedani","Wright","Cardiff Met",13.84]
[1026,"Anthony","Akinwale","Oxford",13.77]
[1009,"nile","odejimi-riley","Nottingham Trent",13.56]
[1032,"Olujimi","Fafowora","Oxford",13.56]
[749,"Saultan","Bello","Kent",13.52]
[400,"Mattis","Trost","Bath",13.35]
[1084,"Nicholas","Butler","Sheffield",13.25]
[849,"Cameron","Williams-Stein","Liverpool John Moores",13.14]
[624,"Zak","Collins-iddi","East Anglia",12.89]
[365,"Thomas","Hufford","Anglia Ruskin",12.85]
[1232,"Success","Ariyibi","Warwick",12.73]
[539,"Will","Parkinson","Cardiff",12.53]
[1235,"Joshua","Orowale","Warwick",12.34]
[99,"Ochuko","Edward","UCL",12.32]
[514,"Baker","Lubwama","Cambridge",12.27]
[710,"Jon","Dixon","Glasgow",12.19]
[131,"adedayo","kosefobamu","Exeter",12.06]
[750,"Lorenzo","Budroni","Kent",12.01]
[]
[null,null,null,null,14.7]

{"sheet":"MPV","index":12,"n_rows":20,"n_cols":5,"rows_kept":20,"cut":false,"hidden":false,"merged":[]}
["Race Number","First Name","Last Name","Institution","BP"]
[1108,"George","Heppinstall","Sheffield Hallam",5.15]
[72,"Jake","Watson","Oxford",5.0999999999999996]
[187,"Ewan","Bradley","Loughborough",4.87]
[946,"karran","Kapur-Walton","Manchester Met",4.76]
[905,"Mark","Mellor","Loughborough",4.72]
[662,"Andrew","McFarlane","Edinburgh",4.6500000000000004]
[491,"Jack","Harris","Brunel",4.55]
[1237,"Femi","Segun","Warwick",4.5199999999999996]
[1233,"Angus","Bowling","Warwick",4.51]
[1193,"Ieuan","Hosgood","Swansea",4.5]
[849,"Cameron","Williams-Stein","Liverpool John Moores",4.3499999999999996]
[1092,"George","Osborne","Sheffield",4.3]
[682,"Idris","Bevan","Exeter",4.3]
[562,"Kurt","Gilbert","Cardiff Met",4.3]
[495,"Abraham","Melbourne","Brunel",4.3]
[445,"Toby","Irving","Birmingham",4.2]
[608,"Sam","Keys","Durham",4]
[564,"liam","hillier","Cardiff Met",4]
[108,"Craig","Moncur","Birmingham",3.65]

{"sheet":"MSP","index":13,"n_rows":29,"n_cols":5,"rows_kept":29,"cut":false,"hidden":false,"merged":[]}
["Race Number","First Name","Last Name","Institution","BP"]
[899,"George","Hyde","Loughborough",17.13]
[496,"Eli","Pawliw","Brunel",16.829999999999998]
[886,"Kane","Aubrey","Loughborough",16.61]
[587,"Chukwuemeka","Osammor","De Montfort",16.54]
[469,"Daniel-James","Thomas","Brighton",15.76]
[517,"Marley","Young","Cambridge",15.71]
[952,"Josh","Tyler","Marjon",14.79]
[184,"Evan","Campbell","Birmingham",14.2]
[450,"Billy","McCauley","Birmingham",13.82]
[532,"Rory","Howorth","Cardiff",13.63]
[498,"Jack","Ryan","Brunel",13.2]
[566,"Patrick","Morgan","Cardiff Met",12.74]
[1054,"Hugh","Williams","Queen Mary",12.36]
[718,"Euan","Urquhart","Glasgow",12.34]
[825,"James","Wordsworth","Leeds Beckett",11.36]
[571,"Joe","Thompson","Cardiff Met",11.21]
[657,"David","Bourne","Edinburgh",11.21]
[132,"Dakota","Sattar","Glasgow Caledonian",11.18]
[949,"Felix","Taylor","Manchester Met",11.01]
[606,"Sam","Gorman","Durham",10.88]
[1109,"JOHN","ILUNGA","Sheffield Hallam",8.99]
[685,"Coleman","Corry","Exeter",7.89]
[708,"Andrew","Chrumka","Glasgow",7.59]
[31,"Oliver","Coyne","Edge Hill",6.8]
[1168,"Iain","Ralston","Stirling",6.04]
[]
[]
[null,null,null,null,14]

{"sheet":"M4x200m","index":14,"n_rows":39,"n_cols":2,"rows_kept":39,"cut":false,"hidden":false,"merged":[]}
["Race Number","Institution"]
["BAT","Bath "]
["BAN","Bangor"]
["BIR","Birmingham"]
["BRS","Bristol"]
["BRU","Brunel"]
["CAR","Cardiff"]
["CDM","Cardiff Met"]
["CHI","Chichester"]
["DUR","Durham"]
["UEA","East Anglia"]
["UEL","East London"]
["EDG","Edge Hill"]
["EXE","Exeter"]
["GLA","Glasgow"]
["KEN","Kent"]
["IMP","Imperial"]
["LEE","Leeds"]
["LBU","Leeds Beckett"]
["LEI","Leicester"]
["LIV","Liverpool"]
["LOU","Loughborough"]
["MAN","Manchester"]
["NEW","Newcastle"]
["NBR","Northumbria"]
["NOT","Nottingham"]
["OXF","Oxford"]
["OXB","Oxford Brookes"]
["PLY","Plymouth"]
["RHU","Royal Holloway"]
["HAL","Sheffield Hallam"]
["SHE","Sheffield     "]
["STL","Stirling"]
["STR","Strathclyde"]
["SWA","Swansea"]
["UCL","University College London"]
["UWE","West of England"]
["WAR","Warwick"]
["WIN","Winchester"]

{"sheet":"MAmb60","index":15,"n_rows":200,"n_cols":7,"rows_kept":200,"cut":false,"hidden":false,"merged":[]}
["Race Number","First Name","Last Name","Institution","BP"]
[345,"Javaughn","Parkes","Birmingham City","00:00:08.260",null,{"$f":"IFERROR(VLOOKUP(F2,LookupTable,2,0),\"\")","v":""}]
[346,"Nils","Rehm","Cardiff","00:00:07.500",null,{"$f":"IFERROR(VLOOKUP(F3,LookupTable,2,0),\"\")","v":""}]
[347,"John","Bridge","Cardiff Met","00:00:07.620",null,""]
[348,"Joel","Mattacks","Cardiff Met","00:00:07.260",null,""]
[349,"Jordan","Andrew","East London","00:00:07.520",null,""]
[350,"Cameron","Thores","Exeter","00:00:07.830",null,""]
[351,"Robert","Cliffe","Leeds Beckett","00:00:08.430",null,""]
[352,"Rio","Boothe","Liverpool John Moores","00:00:09.230",null,""]
[353,"Thomas","Young","Loughborough","00:00:07.030",null,""]
[354,"Ewan","Richardson","Oxford","00:00:10.070",null,""]
[null,null,null,null,null,null,""]
[null,null,null,null,null,null,""]
[null,null,null,null,null,null,""]
[null,null,null,null,null,null,""]
[null,null,null,null,null,null,""]
[null,null,null,null,null,null,""]
[null,null,null,null,null,null,""]
[null,null,null,null,null,null,""]
[null,null,null,null,null,null,""]
[null,null,null,null,null,null,""]
[null,null,null,null,null,null,""]
[null,null,null,null,null,null,""]
[null,null,null,null,null,null,""]
[null,null,null,null,null,null,""]
[null,null,null,null,null,null,""]
[null,null,null,null,null,null,""]
[null,null,null,null,null,null,""]
[null,null,null,null,null,null,""]
[null,null,null,null,null,null,""]
[null,null,null,null,null,null,""]
[null,null,null,null,null,null,""]
[null,null,null,null,null,null,""]
[null,null,null,null,null,null,""]
[null,null,null,null,null,null,{"$f":"IFERROR(VLOOKUP(F35,LookupTable,2,0),\"\")","v":""}]
[null,null,null,null,null,null,""]
[null,null,null,null,null,null,""]
[null,null,null,null,null,null,""]
[null,null,null,null,null,null,""]
[null,null,null,null,null,null,""]
[null,null,null,null,null,null,""]
[null,null,null,null,null,null,""]
[null,null,null,null,null,null,""]
[null,null,null,null,null,null,""]
[null,null,null,null,null,null,""]
[null,null,null,null,null,null,""]
[null,null,null,null,null,null,""]
[null,null,null,null,null,null,""]
[null,null,null,null,null,null,""]
[null,null,null,null,null,null,""]
[null,null,null,null,null,null,""]
[null,null,null,null,null,null,""]
[null,null,null,null,null,null,""]
[null,null,null,null,null,null,""]
[null,null,null,null,null,null,""]
[null,null,null,null,null,null,""]
[null,null,null,null,null,null,""]
[null,null,null,null,null,null,""]
[null,null,null,null,null,null,""]
[null,null,null,null,null,null,""]
[null,null,null,null,null,null,""]
[null,null,null,null,null,null,""]
[null,null,null,null,null,null,""]
[null,null,null,null,null,null,""]
[null,null,null,null,null,null,""]
[null,null,null,null,null,null,""]
[null,null,null,null,null,null,{"$f":"IFERROR(VLOOKUP(F67,LookupTable,2,0),\"\")","v":""}]
[null,null,null,null,null,null,""]
[null,null,null,null,null,null,""]
[null,null,null,null,null,null,""]
[null,null,null,null,null,null,""]
[null,null,null,null,null,null,""]
[null,null,null,null,null,null,""]
[null,null,null,null,null,null,""]
[null,null,null,null,null,null,""]
[null,null,null,null,null,null,""]
[null,null,null,null,null,null,""]
[null,null,null,null,null,null,""]
[null,null,null,null,null,null,""]
[null,null,null,null,null,null,""]
[null,null,null,null,null,null,""]
[null,null,null,null,null,null,""]
[null,null,null,null,null,null,""]
[null,null,null,null,null,null,""]
[null,null,null,null,null,null,""]
[null,null,null,null,null,null,""]
[null,null,null,null,null,null,""]
[null,null,null,null,null,null,""]
[null,null,null,null,null,null,""]
[null,null,null,null,null,null,""]
[null,null,null,null,null,null,""]
[null,null,null,null,null,null,""]
[null,null,null,null,null,null,""]
[null,null,null,null,null,null,""]
[null,null,null,null,null,null,""]
[null,null,null,null,null,null,""]
[null,null,null,null,null,null,""]
[null,null,null,null,null,null,""]
[null,null,null,null,null,null,""]
[null,null,null,null,null,null,""]
[null,null,null,null,null,null,""]
[null,null,null,null,null,null,""]
[null,null,null,null,null,null,""]
[null,null,null,null,null,null,""]
[null,null,null,null,null,null,""]
[null,null,null,null,null,null,""]
[null,null,null,null,null,null,""]
[null,null,null,null,null,null,""]
[null,null,null,null,null,null,""]
[null,null,null,null,null,null,""]
[null,null,null,null,null,null,""]
[null,null,null,null,null,null,""]
[null,null,null,null,null,null,""]
[null,null,null,null,null,null,""]
[null,null,null,null,null,null,""]
[null,null,null,null,null,null,""]
[null,null,null,null,null,null,""]
[null,null,null,null,null,null,""]
[null,null,null,null,null,null,""]
[null,null,null,null,null,null,""]
[null,null,null,null,null,null,""]
[null,null,null,null,null,null,""]
[null,null,null,null,null,null,""]
[null,null,null,null,null,null,""]
[null,null,null,null,null,null,""]
[null,null,null,null,null,null,""]
[null,null,null,null,null,null,""]
[null,null,null,null,null,null,""]
[null,null,null,null,null,null,""]
[null,null,null,null,null,null,""]
[null,null,null,null,null,null,{"$f":"IFERROR(VLOOKUP(F131,LookupTable,2,0),\"\")","v":""}]
[null,null,null,null,null,null,""]
[null,null,null,null,null,null,""]
[null,null,null,null,null,null,""]
[null,null,null,null,null,null,""]
[null,null,null,null,null,null,""]
[null,null,null,null,null,null,""]
[null,null,null,null,null,null,""]
[null,null,null,null,null,null,""]
[null,null,null,null,null,null,""]
[null,null,null,null,null,null,""]
[null,null,null,null,null,null,""]
[null,null,null,null,null,null,""]
[null,null,null,null,null,null,""]
[null,null,null,null,null,null,""]
[null,null,null,null,null,null,""]
[null,null,null,null,null,null,""]
[null,null,null,null,null,null,""]
[null,null,null,null,null,null,""]
[null,null,null,null,null,null,""]
[null,null,null,null,null,null,""]
[null,null,null,null,null,null,""]
[null,null,null,null,null,null,""]
[null,null,null,null,null,null,""]
[null,null,null,null,null,null,""]
[null,null,null,null,null,null,""]
[null,null,null,null,null,null,""]
[null,null,null,null,null,null,""]
[null,null,null,null,null,null,""]
[null,null,null,null,null,null,""]
[null,null,null,null,null,null,""]
[null,null,null,null,null,null,""]
[null,null,null,null,null,null,""]
[null,null,null,null,null,null,""]
[null,null,null,null,null,null,""]
[null,null,null,null,null,null,""]
[null,null,null,null,null,null,""]
[null,null,null,null,null,null,""]
[null,null,null,null,null,null,""]
[null,null,null,null,null,null,""]
[null,null,null,null,null,null,""]
[null,null,null,null,null,null,""]
[null,null,null,null,null,null,""]
[null,null,null,null,null,null,""]
[null,null,null,null,null,null,""]
[null,null,null,null,null,null,""]
[null,null,null,null,null,null,""]
[null,null,null,null,null,null,""]
[null,null,null,null,null,null,""]
[null,null,null,null,null,null,""]
[null,null,null,null,null,null,""]
[null,null,null,null,null,null,""]
[null,null,null,null,null,null,""]
[null,null,null,null,null,null,""]
[null,null,null,null,null,null,""]
[null,null,null,null,null,null,""]
[null,null,null,null,null,null,""]
[null,null,null,null,null,null,""]
[null,null,null,null,null,null,""]
[null,null,null,null,null,null,""]
[null,null,null,null,null,null,""]
[null,null,null,null,null,null,""]
[null,null,null,null,null,null,""]
[null,null,null,null,null,null,""]
[null,null,null,null,null,null,{"$f":"IFERROR(VLOOKUP(F195,LookupTable,2,0),\"\")","v":""}]
[null,null,null,null,null,null,""]
[null,null,null,null,null,null,""]
[null,null,null,null,null,null,""]
[null,null,null,null,null,null,""]
[null,null,null,null,null,null,""]

{"sheet":"MAmbLJ","index":16,"n_rows":200,"n_cols":7,"rows_kept":200,"cut":false,"hidden":false,"merged":[]}
["Race Number","First Name","Last Name","Institution","BP"]
[346,"Nils","Rehm","Cardiff",5.32,null,{"$f":"IFERROR(VLOOKUP(F2,LookupTable,2,0),\"\")","v":""}]
[348,"Joel","Mattacks","Cardiff Met",6.13,null,{"$f":"IFERROR(VLOOKUP(F3,LookupTable,2,0),\"\")","v":""}]
[349,"Jordan","Andrew","East London",6.11,null,""]
[350,"Cameron","Thores","Exeter",4.79,null,""]
[351,"Robert","Cliffe","Leeds Beckett",4.9800000000000004,null,""]
[352,"Rio","Boothe","Liverpool John Moores",4.1900000000000004,null,""]
[null,null,null,null,null,null,""]
[null,null,null,null,null,null,""]
[null,null,null,null,null,null,""]
[null,null,null,null,null,null,""]
[null,null,null,null,null,null,""]
[null,null,null,null,null,null,""]
[null,null,null,null,null,null,""]
[null,null,null,null,null,null,""]
[null,null,null,null,null,null,""]
[null,null,null,null,null,null,""]
[null,null,null,null,null,null,""]
[null,null,null,null,null,null,""]
[null,null,null,null,null,null,""]
[null,null,null,null,null,null,""]
[null,null,null,null,null,null,""]
[null,null,null,null,null,null,""]
[null,null,null,null,null,null,""]
[null,null,null,null,null,null,""]
[null,null,null,null,null,null,""]
[null,null,null,null,null,null,""]
[null,null,null,null,null,null,""]
[null,null,null,null,null,null,""]
[null,null,null,null,null,null,""]
[null,null,null,null,null,null,""]
[null,null,null,null,null,null,""]
[null,null,null,null,null,null,""]
[null,null,null,null,null,null,""]
[null,null,null,null,null,null,{"$f":"IFERROR(VLOOKUP(F35,LookupTable,2,0),\"\")","v":""}]
[null,null,null,null,null,null,""]
[null,null,null,null,null,null,""]
[null,null,null,null,null,null,""]
[null,null,null,null,null,null,""]
[null,null,null,null,null,null,""]
[null,null,null,null,null,null,""]
[null,null,null,null,null,null,""]
[null,null,null,null,null,null,""]
[null,null,null,null,null,null,""]
[null,null,null,null,null,null,""]
[null,null,null,null,null,null,""]
[null,null,null,null,null,null,""]
[null,null,null,null,null,null,""]
[null,null,null,null,null,null,""]
[null,null,null,null,null,null,""]
[null,null,null,null,null,null,""]
[null,null,null,null,null,null,""]
[null,null,null,null,null,null,""]
[null,null,null,null,null,null,""]
[null,null,null,null,null,null,""]
[null,null,null,null,null,null,""]
[null,null,null,null,null,null,""]
[null,null,null,null,null,null,""]
[null,null,null,null,null,null,""]
[null,null,null,null,null,null,""]
[null,null,null,null,null,null,""]
[null,null,null,null,null,null,""]
[null,null,null,null,null,null,""]
[null,null,null,null,null,null,""]
[null,null,null,null,null,null,""]
[null,null,null,null,null,null,""]
[null,null,null,null,null,null,{"$f":"IFERROR(VLOOKUP(F67,LookupTable,2,0),\"\")","v":""}]
[null,null,null,null,null,null,""]
[null,null,null,null,null,null,""]
[null,null,null,null,null,null,""]
[null,null,null,null,null,null,""]
[null,null,null,null,null,null,""]
[null,null,null,null,null,null,""]
[null,null,null,null,null,null,""]
[null,null,null,null,null,null,""]
[null,null,null,null,null,null,""]
[null,null,null,null,null,null,""]
[null,null,null,null,null,null,""]
[null,null,null,null,null,null,""]
[null,null,null,null,null,null,""]
[null,null,null,null,null,null,""]
[null,null,null,null,null,null,""]
[null,null,null,null,null,null,""]
[null,null,null,null,null,null,""]
[null,null,null,null,null,null,""]
[null,null,null,null,null,null,""]
[null,null,null,null,null,null,""]
[null,null,null,null,null,null,""]
[null,null,null,null,null,null,""]
[null,null,null,null,null,null,""]
[null,null,null,null,null,null,""]
[null,null,null,null,null,null,""]
[null,null,null,null,null,null,""]
[null,null,null,null,null,null,""]
[null,null,null,null,null,null,""]
[null,null,null,null,null,null,""]
[null,null,null,null,null,null,""]
[null,null,null,null,null,null,""]
[null,null,null,null,null,null,""]
[null,null,null,null,null,null,""]
[null,null,null,null,null,null,""]
[null,null,null,null,null,null,""]
[null,null,null,null,null,null,""]
[null,null,null,null,null,null,""]
[null,null,null,null,null,null,""]
[null,null,null,null,null,null,""]
[null,null,null,null,null,null,""]
[null,null,null,null,null,null,""]
[null,null,null,null,null,null,""]
[null,null,null,null,null,null,""]
[null,null,null,null,null,null,""]
[null,null,null,null,null,null,""]
[null,null,null,null,null,null,""]
[null,null,null,null,null,null,""]
[null,null,null,null,null,null,""]
[null,null,null,null,null,null,""]
[null,null,null,null,null,null,""]
[null,null,null,null,null,null,""]
[null,null,null,null,null,null,""]
[null,null,null,null,null,null,""]
[null,null,null,null,null,null,""]
[null,null,null,null,null,null,""]
[null,null,null,null,null,null,""]
[null,null,null,null,null,null,""]
[null,null,null,null,null,null,""]
[null,null,null,null,null,null,""]
[null,null,null,null,null,null,""]
[null,null,null,null,null,null,""]
[null,null,null,null,null,null,""]
[null,null,null,null,null,null,""]
[null,null,null,null,null,null,{"$f":"IFERROR(VLOOKUP(F131,LookupTable,2,0),\"\")","v":""}]
[null,null,null,null,null,null,""]
[null,null,null,null,null,null,""]
[null,null,null,null,null,null,""]
[null,null,null,null,null,null,""]
[null,null,null,null,null,null,""]
[null,null,null,null,null,null,""]
[null,null,null,null,null,null,""]
[null,null,null,null,null,null,""]
[null,null,null,null,null,null,""]
[null,null,null,null,null,null,""]
[null,null,null,null,null,null,""]
[null,null,null,null,null,null,""]
[null,null,null,null,null,null,""]
[null,null,null,null,null,null,""]
[null,null,null,null,null,null,""]
[null,null,null,null,null,null,""]
[null,null,null,null,null,null,""]
[null,null,null,null,null,null,""]
[null,null,null,null,null,null,""]
[null,null,null,null,null,null,""]
[null,null,null,null,null,null,""]
[null,null,null,null,null,null,""]
[null,null,null,null,null,null,""]
[null,null,null,null,null,null,""]
[null,null,null,null,null,null,""]
[null,null,null,null,null,null,""]
[null,null,null,null,null,null,""]
[null,null,null,null,null,null,""]
[null,null,null,null,null,null,""]
[null,null,null,null,null,null,""]
[null,null,null,null,null,null,""]
[null,null,null,null,null,null,""]
[null,null,null,null,null,null,""]
[null,null,null,null,null,null,""]
[null,null,null,null,null,null,""]
[null,null,null,null,null,null,""]
[null,null,null,null,null,null,""]
[null,null,null,null,null,null,""]
[null,null,null,null,null,null,""]
[null,null,null,null,null,null,""]
[null,null,null,null,null,null,""]
[null,null,null,null,null,null,""]
[null,null,null,null,null,null,""]
[null,null,null,null,null,null,""]
[null,null,null,null,null,null,""]
[null,null,null,null,null,null,""]
[null,null,null,null,null,null,""]
[null,null,null,null,null,null,""]
[null,null,null,null,null,null,""]
[null,null,null,null,null,null,""]
[null,null,null,null,null,null,""]
[null,null,null,null,null,null,""]
[null,null,null,null,null,null,""]
[null,null,null,null,null,null,""]
[null,null,null,null,null,null,""]
[null,null,null,null,null,null,""]
[null,null,null,null,null,null,""]
[null,null,null,null,null,null,""]
[null,null,null,null,null,null,""]
[null,null,null,null,null,null,""]
[null,null,null,null,null,null,""]
[null,null,null,null,null,null,""]
[null,null,null,null,null,null,""]
[null,null,null,null,null,null,{"$f":"IFERROR(VLOOKUP(F195,LookupTable,2,0),\"\")","v":""}]
[null,null,null,null,null,null,""]
[null,null,null,null,null,null,""]
[null,null,null,null,null,null,""]
[null,null,null,null,null,null,""]
[null,null,null,null,null,null,""]

{"sheet":"1","index":17,"n_rows":27,"n_cols":20,"rows_kept":27,"cut":false,"hidden":false,"merged":[[1,5,1,7],[1,9,1,11]]}
[]
[null,null,null,null,null,"MEN",null,null,null,"WOMEN"]
[null,null,null,null,null,"Valid",null,"Rejected",null,"Valid",null,"Rejected"]
[null,null,null,"60m",null,106,null,1,null,78,null,5]
[null,null,null,"200m",null,82,null,8,null,73,null,2,null,null,null,null,null,null,"Men","Women"]
[null,null,null,"400m",null,71,null,7,null,66,null,1]
[null,null,null,"800m",null,67,null,1,null,46,null,1,null,null,null,"1A","There is NO BP listed, or NO link for a BP",null,10,6]
[null,null,null,"1500m",null,49,null,6,null,40,null,2,null,null,null,"1B","Has not competed in this event since 1st November 2019",null,20,3]
[null,null,null,"3000m",null,32,null,1,null,31,null,5,null,null,null,"2A","Power of 10 link entered BUT is INCORRECT"]
[null,null,null,"60m H",null,24,null,0,null,40,null,1,null,null,null,"2B","Power of 10 link is INCORRECT & cannot be found",null,2,2]
[null,null,null,null,null,null,null,null,null,null,null,null,null,null,null,"3A","Updated BP since 1 November 2019"]
[null,null,null,"High jump",null,30,null,0,null,24,null,1,null,null,null,"3B","BP before 1 November 2019 ie NOT in last 3 years",null,3,7]
[null,null,null,"Long Jump",null,45,null,5,null,58,null,0,null,null,null,"4A","Performance Changed to be AFTER 1st November 2019"]
[null,null,null,"Triple Jump",null,31,null,4,null,38,null,2,null,null,null,"4B","Changed to permitted BP or WA points converted Performance"]
[null,null,null,"Pole Vault",null,19,null,0,null,17,null,0,null,null,null,"4C","Not a permitted performance since 1 November 2019",null,null,1]
[null,null,null,"Shot",null,25,null,2,null,28,null,0,null,null,null,"5A","Wind-assisted BP (w) changed where possible to non (w) BP"]
[null,null,null,null,null,null,null,null,null,null,null,null,null,null,null,"5B"]
[null,null,null,"Amb 60m",null,10,null,0,null,4,null,0,null,null,null,6,"3rd 4th Athlete -Not met entry requirements"]
[null,null,null,"Amb LJ",null,6,null,0,null,2,null,0,null,null,null,7,"Unresolved issue"]
[null,null,null,"Amb Sh",null,0,null,0,null,5,null,0]
[null,null,null,null,null,null,null,null,null,null,null,null,null,null,null,null,null,null,{"$f":"SUM(S7:S20)","v":35},{"$f":"SUM(T7:T20)","v":19}]
[]
[null,null,null,"TOTAL",null,{"$f":"SUM(F4:F22)","v":597},null,{"$f":"SUM(H4:H22)","v":35},null,{"$f":"SUM(J4:J22)","v":550},null,{"$f":"SUM(L4:L22)","v":20}]
[]
[null,null,null,null,null,null,{"$f":"F23+H23","v":632},null,null,null,{"$f":"J23+L23","v":570}]
[]
[null,null,null,null,null,null,null,null,{"$f":"G25+K25","v":1202}]

{"sheet":"W60m","index":18,"n_rows":79,"n_cols":5,"rows_kept":79,"cut":false,"hidden":false,"merged":[]}
["Race Number","First Name","Last Name","Institution","BP"]
[194,"Grace","Brennan","Aberdeen","00:00:08.600"]
[195,"Hannah","Bolt","Exeter","00:00:08.470"]
[196,"Christina","Griffith","Reading","00:00:08.250"]
[198,"Zoe","Austridge","Birmingham","00:00:07.990"]
[199,"Rhia","Badial","Aberdeen","00:00:07.800"]
[200,"Brooke","Ironside","AECC","00:00:07.630"]
[201,"Evy","Mansat Gros","Bangor","00:00:08.940"]
[202,"Aleeya","Sibbons","Bath","00:00:07.410"]
[203,"Amelia","Hart","Bath Spa","00:00:08.920"]
[204,"Sian","Williams","Bedfordshire","00:00:08.840"]
[205,"Madeleine","Whapples","Birmingham","00:00:07.840"]
[206,"Bethany","Shaw","Bristol","00:00:08.140"]
[207,"Louise","Evans","Brunel","00:00:07.600"]
[208,"Lara","Pleace","Brunel","00:00:07.710"]
[209,"Jessica","Poon","Cambridge","00:00:08.470"]
[210,"Alice","Rodgers","Cardiff","00:00:07.990"]
[211,"Louisa","Stoney","Cardiff","00:00:08.160"]
[212,"Kirsty","Treglown","Cardiff Met","00:00:07.910"]
[213,"Issie","Tustin","Cardiff Met","00:00:07.690"]
[214,"Hannah","Childs","Chichester","00:00:07.890"]
[216,"Toni","Robinson","Coventry","00:00:09.080"]
[217,"Amy","Garroch","Durham","00:00:08.470"]
[218,"Charlotte","Rigby","Durham","00:00:08.520"]
[219,"Serena","Grace","East Anglia","00:00:07.600"]
[220,"Christal","Izuchukwu","East Anglia","00:00:08.310"]
[221,"charis","farmer","Edge Hill","00:00:08.210"]
[222,"Alice","Woodhouse","Edge Hill","00:00:08.100"]
[223,"Alyson","Bell","Edinburgh","00:00:07.430"]
[224,"Sofia","Bonicalza","Edinburgh","00:00:07.750"]
[225,"Aimee","Welsh","Exeter","00:00:08.680"]
[226,"Freya","Cowan","Glasgow","00:00:07.660"]
[227,"Tamsin","Fowlie","Glasgow","00:00:08.020"]
[228,"Phoebe","Davies","Gloucestershire","00:00:09.740"]
[229,"Melissa","Doble-Headon","Gloucestershire","00:00:09.020"]
[231,"Jacqueline","Gyamfi","King’s College","00:00:07.880"]
[232,"Janet","Sanyaolu","King’s College","00:00:07.660"]
[233,"Rebekah","Hopper","Lancaster","00:00:08.190"]
[234,"Charlotte","Longden","Leeds","00:00:08.180"]
[235,"Stella","Perrett","Leeds","00:00:08.110"]
[237,"Demi-Leigh","Thompson-Brown","Leeds Beckett","00:00:08.820"]
[238,"Mia-Rose","Llewellyn","Liverpool","00:00:08.470"]
[239,"Millie","Clemson","Liverpool John Moores","00:00:07.990"]
[240,"Kedisha","Dallas","Loughborough","00:00:07.490"]
[241,"Gwendoline","Datey","Loughborough","00:00:07.630"]
[242,"Ella","Francis","Manchester","00:00:08.600"]
[243,"Hannah","Owen","Manchester","00:00:08.740"]
[244,"Kayla","Nurse","Manchester Met","00:00:08.360"]
[245,"Tina","Louis","Middlesex","00:00:07.890"]
[246,"Joy","Eze","Newcastle","00:00:07.360"]
[247,"Katie","Le Rougetel","Newcastle","00:00:08.270"]
[248,"Susan","Folorunso","Northumbria","00:00:07.680"]
[249,"Eleanor","Callaghan-Inge","Nottingham","00:00:08.570"]
[250,"Zoe","Dake","Nottingham","00:00:08.030"]
[251,"Racheal","Largie-Poleon","Nottingham Trent","00:00:07.580"]
[252,"Sharhnee","Skervin","Nottingham Trent","00:00:07.480"]
[253,"Sadie","Graham-Mulvaney","Oxford Brookes","00:00:08"]
[255,"Hannah","Read","Portsmouth","00:00:08.300"]
[256,"Holly","Whitter","Portsmouth","00:00:08.610"]
[257,"Rebecca","Matheson","Robert Gordon","00:00:07.600"]
[258,"Leonie","Ashmeade","Sheffield Hallam","00:00:07.440"]
[259,"Ellie","Booker","Sheffield Hallam","00:00:07.440"]
[260,"Jeslyn","Agyei-Kyem","St Mary’s",7.95]
[261,"Sydney","Davies","Staffordshire","00:00:08.180"]
[262,"Eilidh","Brown","Stirling","00:00:08.446"]
[263,"Rachel","Lorimer","Stirling","00:00:07.850"]
[264,"Amira","Megahey","Strathclyde","00:00:08.700"]
[265,"Mirren","Ward","Strathclyde","00:00:08.560"]
[266,"Sian","Vico","Swansea","00:00:08.070"]
[267,"Sharlene","Mcintosh Walcott","UCB","00:00:07.840"]
[268,"Michelle","Owusu","UCB","00:00:07.950"]
[269,"Tara","Kenyon","UCLan","00:00:11.530"]
[270,"Paula","Melo","UCLan","00:00:08.490"]
[271,"Lois","Garland","UHI","00:00:07.750"]
[272,"Hannah","Longden","UWE","00:00:07.520"]
[273,"Holly","Watts-Lynch","UWE","00:00:08.860"]
[274,"Sophie","Evans","UWS","00:00:07.950"]
[275,"Deborah","Fagbemi","Warwick","00:00:08.730"]
[276,"Ayoola","Babalola","York","00:00:07.650"]

{"sheet":"W200m","index":19,"n_rows":75,"n_cols":5,"rows_kept":75,"cut":false,"hidden":false,"merged":[]}
["Race Number","First Name","Last Name","Institution","BP"]
[193,"Hope","Russell","Nottingham Trent","00:00:27.200"]
[200,"Brooke","Ironside","AECC","00:00:23.860"]
[201,"Evy","Mansat Gros","Bangor","00:00:30.100"]
[203,"Amelia","Hart","Bath Spa","00:00:26.250"]
[204,"Sian","Williams","Bedfordshire","00:00:27.900"]
[205,"Madeleine","Whapples","Birmingham","00:00:24.660"]
[207,"Louise","Evans","Brunel","00:00:23.700"]
[219,"Serena","Grace","East Anglia","00:00:24.340"]
[222,"Alice","Woodhouse","Edge Hill","00:00:27.160"]
[224,"Sofia","Bonicalza","Edinburgh","00:00:24.020"]
[226,"Freya","Cowan","Glasgow","00:00:25.480"]
[227,"Tamsin","Fowlie","Glasgow","00:00:25.730"]
[234,"Charlotte","Longden","Leeds","00:00:25.500"]
[235,"Stella","Perrett","Leeds","00:00:25.190"]
[237,"Demi-Leigh","Thompson-Brown","Leeds Beckett","00:00:28.160"]
[238,"Mia-Rose","Llewellyn","Liverpool","00:00:26.560"]
[243,"Hannah","Owen","Manchester","00:00:28.900"]
[250,"Zoe","Dake","Nottingham","00:00:25.970"]
[252,"Sharhnee","Skervin","Nottingham Trent","00:00:24.050"]
[257,"Rebecca","Matheson","Robert Gordon","00:00:24.330"]
[258,"Leonie","Ashmeade","Sheffield Hallam","00:00:24.320"]
[259,"Ellie","Booker","Sheffield Hallam","00:00:23.700"]
[260,"Jeslyn","Agyei-Kyem","St Mary’s","00:00:25.520"]
[261,"Sydney","Davies","Staffordshire","00:00:26.200"]
[265,"Mirren","Ward","Strathclyde","00:00:28.950"]
[266,"Sian","Vico","Swansea","00:00:26"]
[267,"Sharlene","Mcintosh Walcott","UCB","00:00:25.270"]
[268,"Michelle","Owusu","UCB","00:00:25.700"]
[271,"Lois","Garland","UHI","00:00:24.740"]
[272,"Hannah","Longden","UWE","00:00:24.260"]
[274,"Sophie","Evans","UWS","00:00:25.900"]
[276,"Ayoola","Babalola","York","00:00:23.810"]
[286,"Raquel","Tjernagel","Brunel","00:00:24.940"]
[287,"matilda","robinson","Cardiff","00:00:27.240"]
[289,"Lucy","Drover","East Anglia","00:00:27.330"]
[292,"Ellie","Mae Staniforth","Gloucestershire","00:00:29.400"]
[294,"Harita","Bhadra","Loughborough","00:00:25.130"]
[297,"Jazmine","Moss","Loughborough","00:00:23.840"]
[314,"Stephanie","Brooks","Cardiff Met","00:00:26.470"]
[335,"Stefani","Karekla","Swansea","00:00:27.500"]
[336,"Imogen","Dawe-Lane","UCL","00:00:26.350"]
[384,"Amy","Hillier","Bath","00:00:24.900"]
[431,"Diani","Walker","Birmingham","00:00:25.070"]
[472,"Lucy","Loades","Bristol","00:00:26.280"]
[475,"Ebony","White","Bristol","00:00:29"]
[525,"Lucia","Morgan","Cardiff","00:00:26.070"]
[593,"Isla","Innes","Durham","00:00:27.250"]
[595,"Kira","Nygren","Durham","00:00:30.480"]
[641,"Ellie","Loweth","Edge Hill","00:00:26.980"]
[670,"Emily","Cunningham","Exeter","00:00:28.800"]
[680,"Kianti","Subowo","Exeter","00:00:28.500"]
[719,"Eve","Denholm","Glasgow Caledonian","00:00:25.750"]
[756,"Vanessa","Ansuaa","King’s College","00:00:25.780"]
[765,"Nadja","Schmidbauer","King’s College","00:00:27.500"]
[799,"Neve","Grimes","Leeds Beckett","00:00:27.610"]
[834,"Lucy","Woodward","Liverpool","00:00:26.430"]
[944,"Mercedes","Mercer","Manchester Met","00:00:26.960"]
[956,"Alicia","Mcleod","Newcastle","00:00:30.210"]
[963,"Amy","Wiggans","Newcastle","00:00:27.300"]
[973,"Melissa","Bills","Northumbria","00:00:26.700"]
[976,"DeAjah","Smith","Northumbria","00:00:27.300"]
[1041,"Isabelle","Stanger","Oxford Brookes","00:00:26"]
[1059,"lucy","elcock","Reading","00:00:26.140"]
[1072,"Elizabeth","McMahon","Sheffield","00:00:26.820"]
[1078,"Cat","Reynolds","Sheffield","00:00:26.100"]
[1098,"Bronwyn","Mooney","Sheffield College","00:00:25.780"]
[1156,"Angelica","Oparinde","Stirling","00:00:26.150"]
[1159,"Samantha","Turnbull","Stirling","00:00:27.240"]
[1177,"Kelsey","Stewart","Strathclyde","00:00:24.640"]
[1205,"Marie","Ndongue","UCL","00:00:29.480"]
[1211,"Tyler","Hill","UCLan","00:00:27.200"]
[1215,"Danel","Jansen van Rensburg","UWE","00:00:26.330"]
[1230,"Melina","Pelling","Warwick","00:00:28.680"]
[1238,"Alannah","Fashanu","Westminster","00:00:23.320"]

{"sheet":"W400m","index":20,"n_rows":69,"n_cols":5,"rows_kept":69,"cut":false,"hidden":false,"merged":[]}
["Race Number","First Name","Last Name","Institution","BP"]
[254,"Olivia","Travers","Plymouth","00:01:05.290"]
[260,"Jeslyn","Agyei-Kyem","St Mary’s","00:00:57.200"]
[283,"Isabelle","Skelton’s","Birmingham","00:00:54.250"]
[285,"Khiaaama","Kofi","Brunel","00:01:00"]
[320,"Catriona","Scott","Glasgow","00:01:00.780"]
[362,"Katie","Robbins","AECC","00:00:56.170"]
[370,"Ffion","Mair Roberts","Bangor","00:00:54.920"]
[379,"Olivia","Allbut","Bath","00:01:00.300"]
[415,"Hannah","Kelly","Birmingham","00:00:52.890"]
[463,"Isabel","Pinder","Birmingham City","00:00:58.370"]
[471,"Marie","Kuvaeva","Bristol","00:00:59.800"]
[474,"rosangela","sumbo","Bristol","00:01:06.600"]
[507,"Jessica","O'Flaherty","Cambridge","00:01:02.800"]
[546,"Emily","Bowart","Cardiff Met","00:00:57.740"]
[548,"Olivia","Harwood","Cardiff Met","00:00:59.430"]
[573,"Laura","Turley","Chester","00:00:56.100"]
[594,"Olivia","James","Durham","00:00:59.400"]
[599,"Maddie","Turner","Durham","00:01:04.180"]
[618,"Hannah","Brown","East Anglia","00:00:57.300"]
[621,"Isabelle","Nero","East Anglia","00:01:05"]
[632,"Kyra","Boyce","East London","00:00:57.150"]
[668,"Ella","Barker","Exeter","00:01:01.920"]
[673,"Niamh","Jones","Exeter","00:01:02"]
[702,"Isla","Raeburn","Glasgow","00:01:04.250"]
[719,"Eve","Denholm","Glasgow Caledonian","00:00:59.050"]
[725,"Emma","Pedrana","Heriot-Watt","00:00:59.710"]
[729,"Mia","Liddell","Hull","00:01:01.070"]
[731,"Erin","Minton-Branfoot","Hull","00:00:57.610"]
[745,"Erin","Hughes","Kent","00:01:00.450"]
[754,"Mary","Abichi","King’s College","00:00:53.400"]
[757,"Salihah","Baig","King’s College","00:01:04.700"]
[776,"Lama","Al-Sheikh","Leeds","00:01:22.380"]
[778,"Holly","Cherry","Leeds","00:01:01.240"]
[795,"Lisa","Barlow","Leeds Beckett","00:01:02"]
[797,"Grace","Forster","Leeds Beckett","00:00:59.930"]
[828,"Hannah","McLaughlin","Leicester","00:01:06.910"]
[833,"Nia","Riley","Liverpool","00:00:57.680"]
[841,"Tia","Anderson","Liverpool John Moores","00:00:57.340"]
[842,"Evie","Logan","Liverpool John Moores","00:01:06.200"]
[851,"Emma","Alderson","Loughborough","00:00:55.400"]
[876,"Emily","Newnham","Loughborough","00:00:53.390"]
[927,"Bronwen","Reed","Manchester","00:00:55.370"]
[957,"Ruby","Nelson","Newcastle","00:01:09.310"]
[960,"Asha","Root","Newcastle","00:00:55.670"]
[982,"Deanna","Clarke","Nottingham","00:00:59.340"]
[991,"Kaytlin","Roberts","Nottingham","00:01:01.500"]
[1014,"Samantha","Baker-Jones","Oxford","00:01:00.810"]
[254,"Olivia","Travers","Plymouth","00:01:04.400"]
[1052,"Tegan","Spence","Queen Margaret","00:00:59.010"]
[1059,"lucy","elcock","Reading","00:00:59.870"]
[1064,"Lauren","Matthews","Royal Holloway","00:01:14.420"]
[1072,"Elizabeth","McMahon","Sheffield","00:00:59.870"]
[1078,"Cat","Reynolds","Sheffield","00:00:56.760"]
[1119,"Ciara","Alexander","Solent","00:01:02"]
[1123,"Eva","Gunn","St Andrews","00:01:05.600"]
[1152,"Nicola","Farmer","Stirling","00:01:01.680"]
[1161,"Layla","Zuill","Stirling","00:01:01.910"]
[1171,"Rachel","Callan","Strathclyde","00:00:55.700"]
[1177,"Kelsey","Stewart","Strathclyde","00:00:56.750"]
[1189,"Kyra","Sethna-McIntosh","Swansea","00:01:00.480"]
[1190,"Cerys","Vico","Swansea","00:00:58.470"]
[1199,"Charlotte","Kelsey","Teesside","00:00:55.730"]
[1203,"Elsie","Leiper","UCL","00:01:03.090"]
[1205,"Marie","Ndongue","UCL","00:01:04.900"]
[1215,"Danel","Jansen van Rensburg","UWE","00:00:58.460"]
[1216,"Cara","McGrath","UWE","00:01:02.400"]
[1246,"Lara","Hansen","York","00:01:01.780"]
[1252,"Charlotte","Stamp","York St John","00:00:55.850"]

{"sheet":"W800m","index":21,"n_rows":47,"n_cols":5,"rows_kept":47,"cut":false,"hidden":false,"merged":[]}
["Race Number","First Name","Last Name","Institution","BP"]
[382,"Isabella","Ghersi","Bath","00:02:17.440"]
[418,"Emily","Marmion-Williams","Birmingham","00:02:12.240"]
[427,"Sabrina","Sinha","Birmingham","00:02:04.240"]
[503,"Milly","Dickinson","Cambridge","00:02:11.360"]
[522,"Maisie","Jeger","Cardiff","00:02:15.930"]
[526,"Anabel","Pozniak","Cardiff","00:02:25.670"]
[545,"Caitlin","Battersby","Cardiff Met","00:02:24.920"]
[552,"Danni","Sinclair","Cardiff Met","00:02:20.810"]
[589,"Hannah","Little","Dundee","00:02:29.780"]
[591,"Isabel","Castelow","Durham","00:02:16.440"]
[592,"Maddie","George","Durham","00:02:22.430"]
[636,"Olivia","Baker","Edge Hill","00:02:26"]
[651,"Leah","Keisler","Edinburgh","00:02:19.620"]
[654,"Olivia","Vareille","Edinburgh","00:02:05.590"]
[672,"Eva","Holland","Exeter","00:02:25.100"]
[675,"soraya","lockwood","Exeter","00:02:30.070"]
[698,"Lynn","Harvey","Glasgow","00:02:29.680"]
[704,"Maisie","Watson","Glasgow","00:02:18.010"]
[730,"Jodie","Martin","Hull","00:02:06.360"]
[757,"Salihah","Baig","King’s College","00:02:27.300"]
[764,"Nina","Pearce","King’s College","00:02:37.900"]
[779,"Louise","gilbert","Leeds","00:02:10.760"]
[780,"Shamilah","Halford","Leeds","00:02:38.900"]
[802,"Molly","Hudson","Leeds Beckett","00:02:08.040"]
[803,"Nicola","Moynihan","Leeds Beckett","00:02:14.560"]
[857,"Steph","Driscoll","Loughborough","00:02:04.440"]
[884,"Charlotte","Young","Loughborough","00:02:09.400"]
[920,"Zofia","Godlewska","LSE","00:03:03.400"]
[950,"Emma","Ryder","Marjon","00:02:11.740"]
[961,"Harriet","Thompson","Newcastle","00:02:33.800"]
[962,"Romany","Tune","Newcastle","00:02:47.770"]
[985,"Hermione","Jewell","Nottingham","00:02:26.400"]
[988,"Sophie","McIlroy","Nottingham","00:02:18.460"]
[1019,"Ella","Fryer","Oxford","00:02:09.610"]
[1020,"catherine","gallagher","Oxford","00:02:11.790"]
[1069,"Olivia","Annett","Sheffield","00:02:35.090"]
[1073,"Niamh","Murphy","Sheffield","00:02:32.270"]
[1099,"Alice","Atkins","Sheffield Hallam","00:02:41.360"]
[1102,"Hannah","Roberts","Sheffield Hallam","00:02:10.630"]
[1134,"Morgan","Squibb","St Mary’s","00:02:11.090"]
[1136,"Maisie","Witty","St Mary’s","00:02:39.100"]
[1188,"Suzy","Lecoutre","Swansea","00:02:12.360"]
[1202,"Rebecca","Keddie","UCL","00:02:15.390"]
[1217,"Izzy","Rabjohns","UWE","00:02:22.240"]
[1239,"Lucy","Lewis","Winchester","00:02:47.140"]
[1247,"Jessica","Hoar","York","00:02:26.120"]

{"sheet":"W1500m","index":22,"n_rows":41,"n_cols":5,"rows_kept":41,"cut":false,"hidden":false,"merged":[]}
["Race Number","First Name","Last Name","Institution","BP"]
[385,"Lizzy","Ingram","Bath","00:04:50.850"]
[389,"Jasmine","Palmer","Bath","00:04:41.390"]
[413,"Abigail","Ives","Birmingham","00:04:18.940"]
[432,"Kate","Willis","Birmingham","00:04:29.190"]
[473,"Sophie","Peach","Bristol","00:04:55.930"]
[506,"Laura","Hergenrother","Cambridge","00:04:37.120"]
[519,"Erin","Burt","Cardiff","00:04:38.930"]
[523,"Emily","Lowery","Cardiff","00:04:31.670"]
[553,"Imogen","Tanner","Cardiff Met","00:04:50.520"]
[555,"Abbie","White","Cardiff Met","00:04:45.840"]
[638,"Mia","Butler","Edge Hill","00:05:47.680"]
[650,"Niamh","Carr","Edinburgh","00:04:19.620"]
[652,"Merce","Sanchez Oller","Edinburgh","00:04:44.670"]
[667,"Katie","Balme","Exeter","00:04:48.440"]
[678,"Emma","Powell","Exeter","00:04:47.500"]
[701,"Lucia","Montgomery","Glasgow","00:06:14.370"]
[747,"Chloe","Sharp","Kent","00:04:29.370"]
[762,"Zahra","Kuliev","King’s College","00:05:31.500"]
[763,"Julia","Lace","King’s College","00:05:20.900"]
[781,"Katie","Lowery","Leeds","00:04:22.620"]
[782,"Moli","Lyons","Leeds","00:04:36.030"]
[794,"Emma","Ball","Leeds Beckett","00:05:00.260"]
[861,"Abigail","Hancock","Loughborough","00:04:23.250"]
[874,"Beth","Morley","Loughborough","00:04:16.350"]
[921,"Wenchy","Lai","LSE","00:05:13.900"]
[940,"TJ","Ellis","Manchester Met","00:05:57.310"]
[953,"Marianne","Doherty","Newcastle","00:04:53.010"]
[955,"Shona","Haston","Newcastle","00:04:44.420"]
[974,"Ellie","Howarth","Northumbria","00:05:55.650"]
[986,"Fern","Kimber","Nottingham","00:04:38.010"]
[987,"Rachel","McDonald","Nottingham","00:04:57.110"]
[1015,"Alex","Brown","Oxford","00:04:24.920"]
[1024,"Alex","Shipley","Oxford","00:04:19.990"]
[1040,"Holly","Newman","Oxford Brookes","00:04:58.920"]
[1047,"Amy","Brooks","Portsmouth","00:05:12.400"]
[1129,"Darcie","Bass","St Mary’s","00:04:43.510"]
[1130,"Annabel","Hobday","St Mary’s","00:04:31.640"]
[1153,"Kyra","Gibb","Stirling","00:04:50.460"]
[1158,"Sarah","Tait","Stirling","00:04:19.570"]
[1214,"Lois","Dooley","UWE","00:04:54.200"]

{"sheet":"W3000m","index":23,"n_rows":32,"n_cols":5,"rows_kept":32,"cut":false,"hidden":false,"merged":[]}
["Race Number","First Name","Last Name","Institution","BP"]
[360,"Margarita","Radeva","Aberdeen","00:11:17.120"]
[361,"Stefanie","Tucker","Aberdeen","00:09:54.910"]
[369,"Ella","Leonard","Bangor","00:11:46.660"]
[371,"Aude","Thirouin","Bangor","00:11:49.190"]
[383,"Phoebe","Hayashi","Bath","00:10:08.880"]
[420,"Saskia","Millard","Birmingham","00:09:17.310"]
[422,"Elsa","Palmer","Birmingham","00:09:33.550"]
[473,"Sophie","Peach","Bristol","00:11:07"]
[521,"Lauren","Cooper","Cardiff","00:09:38.700"]
[556,"Imogen","Wood","Cardiff Met","00:09:37.250"]
[601,"Jasmine","Wood","Durham","00:10:41.070"]
[649,"Sarah","Calvert","Edinburgh","00:09:45.180"]
[679,"Bronwen","Stratton-Thomas","Exeter","00:10:51.220"]
[681,"Bethany","Wallis","Exeter","00:10:51.020"]
[758,"Amy","Barry","King’s College","00:11:54"]
[763,"Julia","Lace","King’s College","00:12:09.200"]
[832,"Katie","Miller","Liverpool","00:10:17.420"]
[880,"Keira","Stern","Loughborough","00:10:00.240"]
[883,"Rosie","Woodhams","Loughborough","00:09:55.110"]
[953,"Marianne","Doherty","Newcastle","00:10:55.335"]
[958,"Jacqueline","Penn","Newcastle","00:10:14.270"]
[984,"Elin","Griffiths","Nottingham","00:10:14.810"]
[1021,"Olivia","Kelly","Oxford","00:10:25.020"]
[1079,"Frederica","Richards","Sheffield","00:10:45.960"]
[1131,"Juliet","Hodder","St Mary’s","00:09:29.390"]
[1135,"Mia","Waldmann","St Mary’s","00:09:44.310"]
[1158,"Sarah","Tait","Stirling","00:09:21.780"]
[1186,"Sophia","Harrison","Swansea","00:10:22.980"]
[1187,"Jessica","Hyland","Swansea","00:10:25.880"]
[1204,"elizabeth","mauro","UCL","00:11:18.700"]
[1240,"Lucy","Lockwood","Winchester","00:10:45.800"]

{"sheet":"W60mH","index":24,"n_rows":41,"n_cols":5,"rows_kept":41,"cut":false,"hidden":false,"merged":[]}
["Race Number","First Name","Last Name","Institution","BP"]
[194,"Grace","Brennan","Aberdeen","00:00:09.710"]
[195,"Hannah","Bolt","Exeter","00:00:10.750"]
[196,"Christina","Griffith","Reading","00:00:09.240"]
[197,"Lauryn","Davey","Swansea","00:00:08.860"]
[277,"Arabella","Zeier","Edinburgh","00:00:10.290"]
[303,"Jane","Davidson","Aberdeen","00:00:08.590"]
[304,"Kia","Slade","AECC","00:00:08.800"]
[305,"Ariyanna","Mcgee","Bath","00:00:09.010"]
[306,"Samantha","Stubbs","Bath","00:00:09.090"]
[307,"Jasmine","Clark","Birmingham","00:00:08.720"]
[308,"Danielle","Hales","Birmingham","00:00:08.620"]
[309,"Holly-Mae","McKenna","Bristol","00:00:08.870"]
[310,"Ellie","Isaac","Brunel","00:00:09.250"]
[311,"jodie","smith","Brunel","00:00:08.330"]
[312,"Marli","Jessop","Bucks New","00:00:08.280"]
[313,"Grace","Morgan","Cardiff","00:00:08.530"]
[314,"Stephanie","Brooks","Cardiff Met","00:00:09.110"]
[315,"Lauren","Evans","Cardiff Met","00:00:08.480"]
[316,"Holly","Brotherton","Durham","00:00:10.670"]
[317,"Olivia","Fowler","Edge Hill","00:00:09.390"]
[318,"chloe","eames","Exeter","00:00:11.420"]
[319,"Amy","Kennedy","Glasgow","00:00:09.120"]
[320,"Catriona","Scott","Glasgow","00:00:09.520"]
[321,"Charlotte","Dunstone","Leeds Beckett","00:00:08.860"]
[322,"Ashley","Watson","Leeds Beckett","00:00:08.770"]
[323,"Scarlett","Whittaker","Liverpool","00:00:09.220"]
[324,"Niamh","Emerson","Loughborough","00:00:08.790"]
[325,"Yasmin","Uwakwe","Loughborough","00:00:08.790"]
[326,"Jemma","Rowell","Newcastle","00:00:10.710"]
[327,"Charlotte","Rutter","Newcastle","00:00:08.970"]
[328,"Philippa","Ellis","Northumbria","00:00:08.520"]
[329,"Eniola","Ajagbe","Nottingham","00:00:09.340"]
[330,"Carmen","Williams","Nottingham","00:00:09.270"]
[331,"Erin","Williams","Robert Gordon","00:00:09.330"]
[332,"Rebecca","Johns","Sheffield","00:00:09.130"]
[333,"Eleanor","Kealey","Sheffield","00:00:10.590"]
[334,"Erin","Campbell","Strathclyde","00:00:08.720"]
[335,"Stefani","Karekla","Swansea","00:00:10.070"]
[336,"Imogen","Dawe-Lane","UCL","00:00:09.290"]
[338,"Amy","Lott","York St John","00:00:09.190"]

{"sheet":"WHJ","index":25,"n_rows":30,"n_cols":5,"rows_kept":30,"cut":false,"hidden":false,"merged":[]}
["Race Number","First Name","Last Name","Institution","BP"]
[942,"Emily","Madden Forman","Manchester Met",1.83]
[554,"Hannah","Tapley","Cardiff Met",1.81]
[311,"jodie","smith","Brunel",1.8]
[881,"Zara","Tyas","Loughborough",1.8]
[1218,"Amaya","Scott-Rule","UWE",1.77]
[700,"Claire","McGarvey","Glasgow",1.78]
[1100,"Anna","McCauley","Sheffield Hallam",1.76]
[796,"Lili","Church","Leeds Beckett",1.75]
[826,"Rhiana","Burrell","Leicester",1.75]
[1229,"Janet","Browne","Warwick",1.75]
[381,"Evelyne","Fonteyne","Bath",1.74]
[859,"Jess","Gordon","Loughborough",1.73]
[1200,"Hollie","Smith","Teesside",1.73]
[410,"Lily","Holt","Birmingham",1.72]
[502,"Leonie","Brunning","Cambridge",1.7]
[943,"Amy","McTeggart","Manchester Met",1.68]
[319,"Amy","Kennedy","Glasgow",1.66]
[744,"Imogen","Davis","Kent",1.66]
[975,"Gemma","Smith","Northumbria",1.59]
[421,"Trinity","O’Connor","Birmingham",1.57]
[504,"Annie","Durand-Marandi","Cambridge",1.55]
[1213,"Juliet","Smith","ULaw",1.55]
[247,"Katie","Le Rougetel","Newcastle",1.51]
[326,"Jemma","Rowell","Newcastle",1.5]
[843,"Lilly","OGorman","Liverpool John Moores",1.45]
[]
[null,null,null,null,1.73]
[]
[null,null,null,null,1.33]

{"sheet":"WLJ","index":26,"n_rows":61,"n_cols":5,"rows_kept":61,"cut":false,"hidden":false,"merged":[]}
["Race Number","First Name","Last Name","Institution","BP"]
[311,"jodie","smith","Brunel",6.38]
[865,"Charlotte","Jones","Loughborough",6.32]
[200,"Brooke","Ironside","AECC",6.19]
[864,"Ruby","Jerges","Loughborough",6.09]
[461,"Cleo","Martin-Evans","Birmingham City",5.96]
[586,"Liisa-Maria","Truupold","De Montfort",5.94]
[1178,"Hannah","Wallace","Strathclyde",5.79]
[197,"Lauryn","Davey","Swansea",5.78]
[281,"Stephanie","Robertson","Birmingham",5.67]
[303,"Jane","Davidson","Aberdeen",5.65]
[1245,"Kristie","Archer","York",5.64]
[280,"Ashantae","Graham","Birmingham",5.62]
[313,"Grace","Morgan","Cardiff",5.62]
[943,"Amy","McTeggart","Manchester Met",5.55]
[755,"Lateefah","Agberemi","King’s College",5.52]
[959,"Daisy","Percival","Newcastle",5.51]
[697,"Lucy","Davison","Glasgow",5.47]
[574,"Maddie","Wilton","Chichester",5.46]
[323,"Scarlett","Whittaker","Liverpool",5.45]
[314,"Stephanie","Brooks","Cardiff Met",5.38]
[845,"Ella","Watford","Liverpool John Moores",5.38]
[834,"Lucy","Woodward","Liverpool",5.35]
[327,"Charlotte","Rutter","Newcastle",5.34]
[647,"Laura","Buchan","Edinburgh",5.34]
[485,"Shelby","Odier","Brunel",5.32]
[359,"Briagha","Cook","Aberdeen",5.31]
[317,"Olivia","Fowler","Edge Hill",5.25]
[827,"Gabrielle","Kirkham","Leicester",5.21]
[550,"Carys","Poole","Cardiff Met",5.19]
[728,"Eve","Anderson","Hull",5.14]
[331,"Erin","Williams","Robert Gordon",5.12]
[746,"Scarlet","Margaroli","Kent",5.1100000000000003]
[622,"Carla","Richardson-Rowe","East Anglia",5.07]
[702,"Isla","Raeburn","Glasgow",5.01]
[748,"Demi","Smith-Scott","Kent",5.01]
[1098,"Bronwyn","Mooney","Sheffield College",5]
[233,"Rebekah","Hopper","Lancaster",4.99]
[380,"Eleanor","Brown","Bath",4.99]
[1014,"Samantha","Baker-Jones","Oxford",4.95]
[264,"Amira","Megahey","Strathclyde",4.92]
[620,"Sofia","Mella","East Anglia",4.91]
[941,"Francesca","Fenwick","Manchester Met",4.8499999999999996]
[600,"Maia","Wilkinson","Durham",4.82]
[291,"Ellie","Shail","Exeter",4.67]
[765,"Nadja","Schmidbauer","King’s College",4.67]
[1154,"Jodie","McMail","Stirling",4.6399999999999997]
[277,"Arabella","Zeier","Edinburgh",4.6100000000000003]
[1191,"Luisa","von Schnitzler","Swansea",4.59]
[333,"Eleanor","Kealey","Sheffield",4.5199999999999996]
[804,"Evie","Perrett","Leeds Beckett",4.5199999999999996]
[1157,"Konstantina","Roumanou","Stirling",4.5]
[676,"Sophia","Martin","Exeter",4.45]
[505,"Ceara","Harper","Cambridge",4.42]
[844,"Jayden","Trubshaw","Liverpool John Moores",4.42]
[983,"Emma","Daykin","Nottingham",4.32]
[596,"Aisha","Quartey-Davis","Durham",4.1900000000000004]
[299,"Michelle","Karen","Manchester",3.79]
[470,"Natasha","Clarke","Bristol",3.71]
[]
[null,null,null,null,5.8]

{"sheet":"WTJ","index":27,"n_rows":42,"n_cols":5,"rows_kept":42,"cut":false,"hidden":false,"merged":[]}
["Race Number","First Name","Last Name","Institution","BP"]
[863,"Lily","Hulland","Loughborough",12.9]
[858,"Georgie","Forde-Wells","Loughborough",12.75]
[1074,"Adelaide","Omitowoju","Sheffield",12.46]
[368,"Holly","Aitchison","Bangor",12.38]
[1075,"Ruth-Ann","Otaruoh","Sheffield",12.3]
[508,"Reese","Robinson","Cambridge",12.18]
[1229,"Janet","Browne","Warwick",12.13]
[990,"Olivia","Reah","Nottingham",11.96]
[755,"Lateefah","Agberemi","King’s College",11.94]
[653,"Robyn","Taylor","Edinburgh",11.9]
[551,"Beca","Roberts","Cardiff Met",11.8]
[1228,"Adedoyin","Adeyanju","Warwick",11.68]
[486,"Anna","Ryan","Brunel",11.64]
[1025,"Madeleine","Smith","Oxford",11.59]
[845,"Ella","Watford","Liverpool John Moores",11.57]
[1242,"Hazel","Shanley","Wolverhampton",11.51]
[524,"Anna","McKinty","Cardiff",11.46]
[830,"Sophie","Hampson","Liverpool",11.44]
[401,"Eloise","Harvey","Bedfordshire",11.41]
[954,"Charlotte","Earl","Newcastle",11.32]
[746,"Scarlet","Margaroli","Kent",11.26]
[1226,"Morgan","Findlay","UWS",11.12]
[386,"Harriet","Legg","Bath",10.96]
[520,"Ellie","Carrow","Cardiff",10.96]
[1005,"Rebecca","Thorpe","Nottingham Trent",10.93]
[647,"Laura","Buchan","Edinburgh",10.91]
[364,"Holly","Field","Anglia Ruskin",10.9]
[926,"Joanna","Okenla","Manchester",10.86]
[925,"Lucy","Durham","Manchester",10.79]
[388,"Kirsty","Nelson","Bath",10.76]
[620,"Sofia","Mella","East Anglia",10.75]
[728,"Eve","Anderson","Hull",10.55]
[409,"Daisy","Harris-Bosancic","Birmingham",10.45]
[600,"Maia","Wilkinson","Durham",10.4]
[1022,"Iris-Mae","Morse","Oxford",10.38]
[419,"Chanel","Mba","Birmingham",10.33]
[805,"Millie","Upton","Leeds Beckett",10.14]
[1191,"Luisa","von Schnitzler","Swansea",10.050000000000001]
[]
[]
[null,null,null,null,12.1]

{"sheet":"WPV","index":28,"n_rows":18,"n_cols":5,"rows_kept":18,"cut":false,"hidden":false,"merged":[]}
["Race Number","First Name","Last Name","Institution","BP"]
[1133,"Jade","Spencer-Smith","St Mary’s",4.22]
[852,"Sophie","Ashurst","Loughborough",4.21]
[872,"Felicia","Miloro","Loughborough",4.05]
[759,"Sophie","Dowson","King’s College",4.0199999999999996]
[1065,"Nemiah","Munir","Royal Holloway",4.01]
[387,"Esther","Leong","Bath",3.8]
[699,"Hannah","Lawler","Glasgow",3.7]
[696,"Sara","Barbour","Glasgow",3.65]
[433,"Emily","Scrivener","Birmingham",3.6]
[421,"Trinity","O’Connor","Birmingham",3.5]
[481,"Maddi","Hamer","Brunel",3.3]
[194,"Grace","Brennan","Aberdeen",3.11]
[598,"Lily","Smith","Durham",3.1]
[1004,"Holly","Platt","Nottingham Trent",3.03]
[588,"Gabriella","Wilson","Derby",3]
[509,"Shani","Wright","Cambridge",2.8]
[466,"Mia","Soman","Brighton",2.7]

{"sheet":"WSP","index":29,"n_rows":31,"n_cols":5,"rows_kept":31,"cut":false,"hidden":false,"merged":[]}
["Race Number","First Name","Last Name","Institution","BP"]
[1048,"Serena","Vincent","Portsmouth",16.670000000000002]
[319,"Amy","Kennedy","Glasgow",14.15]
[483,"Jess","Hopkins","Brunel",14.04]
[1003,"Alexandrea","Adeniji","Nottingham Trent",13.56]
[879,"Abigail","Pawlett","Loughborough",13.55]
[1101,"Jade","O’Dowda","Sheffield Hallam",13.44]
[581,"Makayla","Joseph","Coventry",13.01]
[873,"Elizabeth","Moorhouse","Loughborough",12.88]
[479,"Zara","Acton","Brunel",12.62]
[462,"Iris","Oliarnyk","Birmingham City",12.27]
[761,"Emily","Huber","King’s College",12.08]
[1023,"Chimdi","Okpalauko","Oxford",11.93]
[1100,"Anna","McCauley","Sheffield Hallam",11.76]
[1080,"Caitlin","Rimmer","Sheffield",11.68]
[666,"Ellen","Cunningham","Essex",11.49]
[549,"Gwennan","Lewis","Cardiff Met",11.3]
[408,"Kirsty-Anne","Ebbage","Birmingham",10.87]
[637,"Holly","Benson","Edge Hill",10.86]
[1082,"Jasmine","Waters","Sheffield",10.53]
[834,"Lucy","Woodward","Liverpool",10.49]
[777,"Lily","Carpenter","Leeds",10.36]
[233,"Rebekah","Hopper","Lancaster",9.9700000000000006]
[702,"Isla","Raeburn","Glasgow",9.4499999999999993]
[671,"Kathryn","Hinton","Exeter",9.43]
[640,"Megan","Lockwood","Edge Hill",8.9700000000000006]
[1155,"Sophie","Michie","Stirling",7.13]
[1160,"Lauryn","Wood","Stirling",7.13]
[217,"Amy","Garroch","Durham",6.78]
[]
[null,null,null,null,13.1]

{"sheet":"W4x200m","index":30,"n_rows":30,"n_cols":2,"rows_kept":30,"cut":false,"hidden":false,"merged":[]}
["Race Number","Institution"]
["BIR","Birmingham"]
["BRS","Bristol"]
["BRU","Brunel"]
["CAR","Cardiff"]
["CDM","Cardiff Met"]
["DUR","Durham"]
["UEA","East Anglia"]
["EDG","Edge Hill"]
["EXE","Exeter"]
["GLA","Glasgow"]
["LEE","Leeds"]
["LBU","Leeds Beckett"]
["LIV","Liverpool"]
["LOU","Loughborough"]
["MAN","Manchester"]
["MMU","Manchester Met"]
["NEW","Newcastle"]
["NBR","Northumbria"]
["NOT","Nottingham"]
["OXF","Oxford"]
["HAL","Sheffield Hallam"]
["SHE","Sheffield   "]
["STL","Stirling"]
["STR","Strathclyde"]
["SWA","Swansea"]
["UCL","University College London"]
["UWE","West of England"]
["WAR","Warwick"]
["WIN","Winchester"]

{"sheet":"WAmb60m","index":31,"n_rows":200,"n_cols":7,"rows_kept":200,"cut":false,"hidden":false,"merged":[]}
["Race Number","First Name","Last Name","Institution","BP"]
[355,"Ndidikama","Okoh","Birmingham","00:00:09.320",null,{"$f":"IFERROR(VLOOKUP(F2,LookupTable,2,0),\"\")","v":""}]
[356,"Freya","Howgate","Loughborough","00:00:10.210",null,{"$f":"IFERROR(VLOOKUP(F3,LookupTable,2,0),\"\")","v":""}]
[357,"India","Oates","Loughborough","00:00:10.270",null,""]
[358,"Simran","Kaur","Nottingham","00:00:08.660",null,""]
[null,null,null,null,null,null,""]
[null,null,null,null,null,null,""]
[null,null,null,null,null,null,""]
[null,null,null,null,null,null,""]
[null,null,null,null,null,null,""]
[null,null,null,null,null,null,""]
[null,null,null,null,null,null,""]
[null,null,null,null,null,null,""]
[null,null,null,null,null,null,""]
[null,null,null,null,null,null,""]
[null,null,null,null,null,null,""]
[null,null,null,null,null,null,""]
[null,null,null,null,null,null,""]
[null,null,null,null,null,null,""]
[null,null,null,null,null,null,""]
[null,null,null,null,null,null,""]
[null,null,null,null,null,null,""]
[null,null,null,null,null,null,""]
[null,null,null,null,null,null,""]
[null,null,null,null,null,null,""]
[null,null,null,null,null,null,""]
[null,null,null,null,null,null,""]
[null,null,null,null,null,null,""]
[null,null,null,null,null,null,""]
[null,null,null,null,null,null,""]
[null,null,null,null,null,null,""]
[null,null,null,null,null,null,""]
[null,null,null,null,null,null,""]
[null,null,null,null,null,null,""]
[null,null,null,null,null,null,{"$f":"IFERROR(VLOOKUP(F35,LookupTable,2,0),\"\")","v":""}]
[null,null,null,null,null,null,""]
[null,null,null,null,null,null,""]
[null,null,null,null,null,null,""]
[null,null,null,null,null,null,""]
[null,null,null,null,null,null,""]
[null,null,null,null,null,null,""]
[null,null,null,null,null,null,""]
[null,null,null,null,null,null,""]
[null,null,null,null,null,null,""]
[null,null,null,null,null,null,""]
[null,null,null,null,null,null,""]
[null,null,null,null,null,null,""]
[null,null,null,null,null,null,""]
[null,null,null,null,null,null,""]
[null,null,null,null,null,null,""]
[null,null,null,null,null,null,""]
[null,null,null,null,null,null,""]
[null,null,null,null,null,null,""]
[null,null,null,null,null,null,""]
[null,null,null,null,null,null,""]
[null,null,null,null,null,null,""]
[null,null,null,null,null,null,""]
[null,null,null,null,null,null,""]
[null,null,null,null,null,null,""]
[null,null,null,null,null,null,""]
[null,null,null,null,null,null,""]
[null,null,null,null,null,null,""]
[null,null,null,null,null,null,""]
[null,null,null,null,null,null,""]
[null,null,null,null,null,null,""]
[null,null,null,null,null,null,""]
[null,null,null,null,null,null,{"$f":"IFERROR(VLOOKUP(F67,LookupTable,2,0),\"\")","v":""}]
[null,null,null,null,null,null,""]
[null,null,null,null,null,null,""]
[null,null,null,null,null,null,""]
[null,null,null,null,null,null,""]
[null,null,null,null,null,null,""]
[null,null,null,null,null,null,""]
[null,null,null,null,null,null,""]
[null,null,null,null,null,null,""]
[null,null,null,null,null,null,""]
[null,null,null,null,null,null,""]
[null,null,null,null,null,null,""]
[null,null,null,null,null,null,""]
[null,null,null,null,null,null,""]
[null,null,null,null,null,null,""]
[null,null,null,null,null,null,""]
[null,null,null,null,null,null,""]
[null,null,null,null,null,null,""]
[null,null,null,null,null,null,""]
[null,null,null,null,null,null,""]
[null,null,null,null,null,null,""]
[null,null,null,null,null,null,""]
[null,null,null,null,null,null,""]
[null,null,null,null,null,null,""]
[null,null,null,null,null,null,""]
[null,null,null,null,null,null,""]
[null,null,null,null,null,null,""]
[null,null,null,null,null,null,""]
[null,null,null,null,null,null,""]
[null,null,null,null,null,null,""]
[null,null,null,null,null,null,""]
[null,null,null,null,null,null,""]
[null,null,null,null,null,null,""]
[null,null,null,null,null,null,""]
[null,null,null,null,null,null,""]
[null,null,null,null,null,null,""]
[null,null,null,null,null,null,""]
[null,null,null,null,null,null,""]
[null,null,null,null,null,null,""]
[null,null,null,null,null,null,""]
[null,null,null,null,null,null,""]
[null,null,null,null,null,null,""]
[null,null,null,null,null,null,""]
[null,null,null,null,null,null,""]
[null,null,null,null,null,null,""]
[null,null,null,null,null,null,""]
[null,null,null,null,null,null,""]
[null,null,null,null,null,null,""]
[null,null,null,null,null,null,""]
[null,null,null,null,null,null,""]
[null,null,null,null,null,null,""]
[null,null,null,null,null,null,""]
[null,null,null,null,null,null,""]
[null,null,null,null,null,null,""]
[null,null,null,null,null,null,""]
[null,null,null,null,null,null,""]
[null,null,null,null,null,null,""]
[null,null,null,null,null,null,""]
[null,null,null,null,null,null,""]
[null,null,null,null,null,null,""]
[null,null,null,null,null,null,""]
[null,null,null,null,null,null,""]
[null,null,null,null,null,null,""]
[null,null,null,null,null,null,""]
[null,null,null,null,null,null,{"$f":"IFERROR(VLOOKUP(F131,LookupTable,2,0),\"\")","v":""}]
[null,null,null,null,null,null,""]
[null,null,null,null,null,null,""]
[null,null,null,null,null,null,""]
[null,null,null,null,null,null,""]
[null,null,null,null,null,null,""]
[null,null,null,null,null,null,""]
[null,null,null,null,null,null,""]
[null,null,null,null,null,null,""]
[null,null,null,null,null,null,""]
[null,null,null,null,null,null,""]
[null,null,null,null,null,null,""]
[null,null,null,null,null,null,""]
[null,null,null,null,null,null,""]
[null,null,null,null,null,null,""]
[null,null,null,null,null,null,""]
[null,null,null,null,null,null,""]
[null,null,null,null,null,null,""]
[null,null,null,null,null,null,""]
[null,null,null,null,null,null,""]
[null,null,null,null,null,null,""]
[null,null,null,null,null,null,""]
[null,null,null,null,null,null,""]
[null,null,null,null,null,null,""]
[null,null,null,null,null,null,""]
[null,null,null,null,null,null,""]
[null,null,null,null,null,null,""]
[null,null,null,null,null,null,""]
[null,null,null,null,null,null,""]
[null,null,null,null,null,null,""]
[null,null,null,null,null,null,""]
[null,null,null,null,null,null,""]
[null,null,null,null,null,null,""]
[null,null,null,null,null,null,""]
[null,null,null,null,null,null,""]
[null,null,null,null,null,null,""]
[null,null,null,null,null,null,""]
[null,null,null,null,null,null,""]
[null,null,null,null,null,null,""]
[null,null,null,null,null,null,""]
[null,null,null,null,null,null,""]
[null,null,null,null,null,null,""]
[null,null,null,null,null,null,""]
[null,null,null,null,null,null,""]
[null,null,null,null,null,null,""]
[null,null,null,null,null,null,""]
[null,null,null,null,null,null,""]
[null,null,null,null,null,null,""]
[null,null,null,null,null,null,""]
[null,null,null,null,null,null,""]
[null,null,null,null,null,null,""]
[null,null,null,null,null,null,""]
[null,null,null,null,null,null,""]
[null,null,null,null,null,null,""]
[null,null,null,null,null,null,""]
[null,null,null,null,null,null,""]
[null,null,null,null,null,null,""]
[null,null,null,null,null,null,""]
[null,null,null,null,null,null,""]
[null,null,null,null,null,null,""]
[null,null,null,null,null,null,""]
[null,null,null,null,null,null,""]
[null,null,null,null,null,null,""]
[null,null,null,null,null,null,""]
[null,null,null,null,null,null,{"$f":"IFERROR(VLOOKUP(F195,LookupTable,2,0),\"\")","v":""}]
[null,null,null,null,null,null,""]
[null,null,null,null,null,null,""]
[null,null,null,null,null,null,""]
[null,null,null,null,null,null,""]
[null,null,null,null,null,null,""]

{"sheet":"WAmbLJ","index":32,"n_rows":200,"n_cols":7,"rows_kept":200,"cut":false,"hidden":false,"merged":[]}
["Race Number","First Name","Last Name","Institution","BP"]
[355,"Ndidikama","Okoh","Birmingham","4.28m",null,{"$f":"IFERROR(VLOOKUP(F2,LookupTable,2,0),\"\")","v":""}]
[356,"Freya","Howgate","Loughborough","3.38 meters ",null,{"$f":"IFERROR(VLOOKUP(F3,LookupTable,2,0),\"\")","v":""}]
[null,null,null,null,null,null,""]
[null,null,null,null,null,null,""]
[null,null,null,null,null,null,""]
[null,null,null,null,null,null,""]
[null,null,null,null,null,null,""]
[null,null,null,null,null,null,""]
[null,null,null,null,null,null,""]
[null,null,null,null,null,null,""]
[null,null,null,null,null,null,""]
[null,null,null,null,null,null,""]
[null,null,null,null,null,null,""]
[null,null,null,null,null,null,""]
[null,null,null,null,null,null,""]
[null,null,null,null,null,null,""]
[null,null,null,null,null,null,""]
[null,null,null,null,null,null,""]
[null,null,null,null,null,null,""]
[null,null,null,null,null,null,""]
[null,null,null,null,null,null,""]
[null,null,null,null,null,null,""]
[null,null,null,null,null,null,""]
[null,null,null,null,null,null,""]
[null,null,null,null,null,null,""]
[null,null,null,null,null,null,""]
[null,null,null,null,null,null,""]
[null,null,null,null,null,null,""]
[null,null,null,null,null,null,""]
[null,null,null,null,null,null,""]
[null,null,null,null,null,null,""]
[null,null,null,null,null,null,""]
[null,null,null,null,null,null,""]
[null,null,null,null,null,null,{"$f":"IFERROR(VLOOKUP(F35,LookupTable,2,0),\"\")","v":""}]
[null,null,null,null,null,null,""]
[null,null,null,null,null,null,""]
[null,null,null,null,null,null,""]
[null,null,null,null,null,null,""]
[null,null,null,null,null,null,""]
[null,null,null,null,null,null,""]
[null,null,null,null,null,null,""]
[null,null,null,null,null,null,""]
[null,null,null,null,null,null,""]
[null,null,null,null,null,null,""]
[null,null,null,null,null,null,""]
[null,null,null,null,null,null,""]
[null,null,null,null,null,null,""]
[null,null,null,null,null,null,""]
[null,null,null,null,null,null,""]
[null,null,null,null,null,null,""]
[null,null,null,null,null,null,""]
[null,null,null,null,null,null,""]
[null,null,null,null,null,null,""]
[null,null,null,null,null,null,""]
[null,null,null,null,null,null,""]
[null,null,null,null,null,null,""]
[null,null,null,null,null,null,""]
[null,null,null,null,null,null,""]
[null,null,null,null,null,null,""]
[null,null,null,null,null,null,""]
[null,null,null,null,null,null,""]
[null,null,null,null,null,null,""]
[null,null,null,null,null,null,""]
[null,null,null,null,null,null,""]
[null,null,null,null,null,null,""]
[null,null,null,null,null,null,{"$f":"IFERROR(VLOOKUP(F67,LookupTable,2,0),\"\")","v":""}]
[null,null,null,null,null,null,""]
[null,null,null,null,null,null,""]
[null,null,null,null,null,null,""]
[null,null,null,null,null,null,""]
[null,null,null,null,null,null,""]
[null,null,null,null,null,null,""]
[null,null,null,null,null,null,""]
[null,null,null,null,null,null,""]
[null,null,null,null,null,null,""]
[null,null,null,null,null,null,""]
[null,null,null,null,null,null,""]
[null,null,null,null,null,null,""]
[null,null,null,null,null,null,""]
[null,null,null,null,null,null,""]
[null,null,null,null,null,null,""]
[null,null,null,null,null,null,""]
[null,null,null,null,null,null,""]
[null,null,null,null,null,null,""]
[null,null,null,null,null,null,""]
[null,null,null,null,null,null,""]
[null,null,null,null,null,null,""]
[null,null,null,null,null,null,""]
[null,null,null,null,null,null,""]
[null,null,null,null,null,null,""]
[null,null,null,null,null,null,""]
[null,null,null,null,null,null,""]
[null,null,null,null,null,null,""]
[null,null,null,null,null,null,""]
[null,null,null,null,null,null,""]
[null,null,null,null,null,null,""]
[null,null,null,null,null,null,""]
[null,null,null,null,null,null,""]
[null,null,null,null,null,null,""]
[null,null,null,null,null,null,""]
[null,null,null,null,null,null,""]
[null,null,null,null,null,null,""]
[null,null,null,null,null,null,""]
[null,null,null,null,null,null,""]
[null,null,null,null,null,null,""]
[null,null,null,null,null,null,""]
[null,null,null,null,null,null,""]
[null,null,null,null,null,null,""]
[null,null,null,null,null,null,""]
[null,null,null,null,null,null,""]
[null,null,null,null,null,null,""]
[null,null,null,null,null,null,""]
[null,null,null,null,null,null,""]
[null,null,null,null,null,null,""]
[null,null,null,null,null,null,""]
[null,null,null,null,null,null,""]
[null,null,null,null,null,null,""]
[null,null,null,null,null,null,""]
[null,null,null,null,null,null,""]
[null,null,null,null,null,null,""]
[null,null,null,null,null,null,""]
[null,null,null,null,null,null,""]
[null,null,null,null,null,null,""]
[null,null,null,null,null,null,""]
[null,null,null,null,null,null,""]
[null,null,null,null,null,null,""]
[null,null,null,null,null,null,""]
[null,null,null,null,null,null,""]
[null,null,null,null,null,null,""]
[null,null,null,null,null,null,{"$f":"IFERROR(VLOOKUP(F131,LookupTable,2,0),\"\")","v":""}]
[null,null,null,null,null,null,""]
[null,null,null,null,null,null,""]
[null,null,null,null,null,null,""]
[null,null,null,null,null,null,""]
[null,null,null,null,null,null,""]
[null,null,null,null,null,null,""]
[null,null,null,null,null,null,""]
[null,null,null,null,null,null,""]
[null,null,null,null,null,null,""]
[null,null,null,null,null,null,""]
[null,null,null,null,null,null,""]
[null,null,null,null,null,null,""]
[null,null,null,null,null,null,""]
[null,null,null,null,null,null,""]
[null,null,null,null,null,null,""]
[null,null,null,null,null,null,""]
[null,null,null,null,null,null,""]
[null,null,null,null,null,null,""]
[null,null,null,null,null,null,""]
[null,null,null,null,null,null,""]
[null,null,null,null,null,null,""]
[null,null,null,null,null,null,""]
[null,null,null,null,null,null,""]
[null,null,null,null,null,null,""]
[null,null,null,null,null,null,""]
[null,null,null,null,null,null,""]
[null,null,null,null,null,null,""]
[null,null,null,null,null,null,""]
[null,null,null,null,null,null,""]
[null,null,null,null,null,null,""]
[null,null,null,null,null,null,""]
[null,null,null,null,null,null,""]
[null,null,null,null,null,null,""]
[null,null,null,null,null,null,""]
[null,null,null,null,null,null,""]
[null,null,null,null,null,null,""]
[null,null,null,null,null,null,""]
[null,null,null,null,null,null,""]
[null,null,null,null,null,null,""]
[null,null,null,null,null,null,""]
[null,null,null,null,null,null,""]
[null,null,null,null,null,null,""]
[null,null,null,null,null,null,""]
[null,null,null,null,null,null,""]
[null,null,null,null,null,null,""]
[null,null,null,null,null,null,""]
[null,null,null,null,null,null,""]
[null,null,null,null,null,null,""]
[null,null,null,null,null,null,""]
[null,null,null,null,null,null,""]
[null,null,null,null,null,null,""]
[null,null,null,null,null,null,""]
[null,null,null,null,null,null,""]
[null,null,null,null,null,null,""]
[null,null,null,null,null,null,""]
[null,null,null,null,null,null,""]
[null,null,null,null,null,null,""]
[null,null,null,null,null,null,""]
[null,null,null,null,null,null,""]
[null,null,null,null,null,null,""]
[null,null,null,null,null,null,""]
[null,null,null,null,null,null,""]
[null,null,null,null,null,null,""]
[null,null,null,null,null,null,{"$f":"IFERROR(VLOOKUP(F195,LookupTable,2,0),\"\")","v":""}]
[null,null,null,null,null,null,""]
[null,null,null,null,null,null,""]
[null,null,null,null,null,null,""]
[null,null,null,null,null,null,""]
[null,null,null,null,null,null,""]

{"sheet":"WAmbSP","index":33,"n_rows":200,"n_cols":7,"rows_kept":200,"cut":false,"hidden":false,"merged":[]}
["Race Number","First Name","Last Name","Institution","BP"]
[355,"Ndidikama","Okoh","Birmingham",8,null,{"$f":"IFERROR(VLOOKUP(F2,LookupTable,2,0),\"\")","v":""}]
[356,"Freya","Howgate","Loughborough",8.65,null,{"$f":"IFERROR(VLOOKUP(F3,LookupTable,2,0),\"\")","v":""}]
[357,"India","Oates","Loughborough",5.8,null,""]
[501,"Abigail","Birch","Bucks New",5.64,null,""]
[856,"Lydia","Church","Loughborough",12.7,null,""]
[null,null,null,null,null,null,""]
[null,null,null,null,null,null,""]
[null,null,null,null,null,null,""]
[null,null,null,null,null,null,""]
[null,null,null,null,null,null,""]
[null,null,null,null,null,null,""]
[null,null,null,null,null,null,""]
[null,null,null,null,null,null,""]
[null,null,null,null,null,null,""]
[null,null,null,null,null,null,""]
[null,null,null,null,null,null,""]
[null,null,null,null,null,null,""]
[null,null,null,null,null,null,""]
[null,null,null,null,null,null,""]
[null,null,null,null,null,null,""]
[null,null,null,null,null,null,""]
[null,null,null,null,null,null,""]
[null,null,null,null,null,null,""]
[null,null,null,null,null,null,""]
[null,null,null,null,null,null,""]
[null,null,null,null,null,null,""]
[null,null,null,null,null,null,""]
[null,null,null,null,null,null,""]
[null,null,null,null,null,null,""]
[null,null,null,null,null,null,""]
[null,null,null,null,null,null,""]
[null,null,null,null,null,null,""]
[null,null,null,null,null,null,""]
[null,null,null,null,null,null,{"$f":"IFERROR(VLOOKUP(F35,LookupTable,2,0),\"\")","v":""}]
[null,null,null,null,null,null,""]
[null,null,null,null,null,null,""]
[null,null,null,null,null,null,""]
[null,null,null,null,null,null,""]
[null,null,null,null,null,null,""]
[null,null,null,null,null,null,""]
[null,null,null,null,null,null,""]
[null,null,null,null,null,null,""]
[null,null,null,null,null,null,""]
[null,null,null,null,null,null,""]
[null,null,null,null,null,null,""]
[null,null,null,null,null,null,""]
[null,null,null,null,null,null,""]
[null,null,null,null,null,null,""]
[null,null,null,null,null,null,""]
[null,null,null,null,null,null,""]
[null,null,null,null,null,null,""]
[null,null,null,null,null,null,""]
[null,null,null,null,null,null,""]
[null,null,null,null,null,null,""]
[null,null,null,null,null,null,""]
[null,null,null,null,null,null,""]
[null,null,null,null,null,null,""]
[null,null,null,null,null,null,""]
[null,null,null,null,null,null,""]
[null,null,null,null,null,null,""]
[null,null,null,null,null,null,""]
[null,null,null,null,null,null,""]
[null,null,null,null,null,null,""]
[null,null,null,null,null,null,""]
[null,null,null,null,null,null,""]
[null,null,null,null,null,null,{"$f":"IFERROR(VLOOKUP(F67,LookupTable,2,0),\"\")","v":""}]
[null,null,null,null,null,null,""]
[null,null,null,null,null,null,""]
[null,null,null,null,null,null,""]
[null,null,null,null,null,null,""]
[null,null,null,null,null,null,""]
[null,null,null,null,null,null,""]
[null,null,null,null,null,null,""]
[null,null,null,null,null,null,""]
[null,null,null,null,null,null,""]
[null,null,null,null,null,null,""]
[null,null,null,null,null,null,""]
[null,null,null,null,null,null,""]
[null,null,null,null,null,null,""]
[null,null,null,null,null,null,""]
[null,null,null,null,null,null,""]
[null,null,null,null,null,null,""]
[null,null,null,null,null,null,""]
[null,null,null,null,null,null,""]
[null,null,null,null,null,null,""]
[null,null,null,null,null,null,""]
[null,null,null,null,null,null,""]
[null,null,null,null,null,null,""]
[null,null,null,null,null,null,""]
[null,null,null,null,null,null,""]
[null,null,null,null,null,null,""]
[null,null,null,null,null,null,""]
[null,null,null,null,null,null,""]
[null,null,null,null,null,null,""]
[null,null,null,null,null,null,""]
[null,null,null,null,null,null,""]
[null,null,null,null,null,null,""]
[null,null,null,null,null,null,""]
[null,null,null,null,null,null,""]
[null,null,null,null,null,null,""]
[null,null,null,null,null,null,""]
[null,null,null,null,null,null,""]
[null,null,null,null,null,null,""]
[null,null,null,null,null,null,""]
[null,null,null,null,null,null,""]
[null,null,null,null,null,null,""]
[null,null,null,null,null,null,""]
[null,null,null,null,null,null,""]
[null,null,null,null,null,null,""]
[null,null,null,null,null,null,""]
[null,null,null,null,null,null,""]
[null,null,null,null,null,null,""]
[null,null,null,null,null,null,""]
[null,null,null,null,null,null,""]
[null,null,null,null,null,null,""]
[null,null,null,null,null,null,""]
[null,null,null,null,null,null,""]
[null,null,null,null,null,null,""]
[null,null,null,null,null,null,""]
[null,null,null,null,null,null,""]
[null,null,null,null,null,null,""]
[null,null,null,null,null,null,""]
[null,null,null,null,null,null,""]
[null,null,null,null,null,null,""]
[null,null,null,null,null,null,""]
[null,null,null,null,null,null,""]
[null,null,null,null,null,null,""]
[null,null,null,null,null,null,""]
[null,null,null,null,null,null,""]
[null,null,null,null,null,null,{"$f":"IFERROR(VLOOKUP(F131,LookupTable,2,0),\"\")","v":""}]
[null,null,null,null,null,null,""]
[null,null,null,null,null,null,""]
[null,null,null,null,null,null,""]
[null,null,null,null,null,null,""]
[null,null,null,null,null,null,""]
[null,null,null,null,null,null,""]
[null,null,null,null,null,null,""]
[null,null,null,null,null,null,""]
[null,null,null,null,null,null,""]
[null,null,null,null,null,null,""]
[null,null,null,null,null,null,""]
[null,null,null,null,null,null,""]
[null,null,null,null,null,null,""]
[null,null,null,null,null,null,""]
[null,null,null,null,null,null,""]
[null,null,null,null,null,null,""]
[null,null,null,null,null,null,""]
[null,null,null,null,null,null,""]
[null,null,null,null,null,null,""]
[null,null,null,null,null,null,""]
[null,null,null,null,null,null,""]
[null,null,null,null,null,null,""]
[null,null,null,null,null,null,""]
[null,null,null,null,null,null,""]
[null,null,null,null,null,null,""]
[null,null,null,null,null,null,""]
[null,null,null,null,null,null,""]
[null,null,null,null,null,null,""]
[null,null,null,null,null,null,""]
[null,null,null,null,null,null,""]
[null,null,null,null,null,null,""]
[null,null,null,null,null,null,""]
[null,null,null,null,null,null,""]
[null,null,null,null,null,null,""]
[null,null,null,null,null,null,""]
[null,null,null,null,null,null,""]
[null,null,null,null,null,null,""]
[null,null,null,null,null,null,""]
[null,null,null,null,null,null,""]
[null,null,null,null,null,null,""]
[null,null,null,null,null,null,""]
[null,null,null,null,null,null,""]
[null,null,null,null,null,null,""]
[null,null,null,null,null,null,""]
[null,null,null,null,null,null,""]
[null,null,null,null,null,null,""]
[null,null,null,null,null,null,""]
[null,null,null,null,null,null,""]
[null,null,null,null,null,null,""]
[null,null,null,null,null,null,""]
[null,null,null,null,null,null,""]
[null,null,null,null,null,null,""]
[null,null,null,null,null,null,""]
[null,null,null,null,null,null,""]
[null,null,null,null,null,null,""]
[null,null,null,null,null,null,""]
[null,null,null,null,null,null,""]
[null,null,null,null,null,null,""]
[null,null,null,null,null,null,""]
[null,null,null,null,null,null,""]
[null,null,null,null,null,null,""]
[null,null,null,null,null,null,""]
[null,null,null,null,null,null,""]
[null,null,null,null,null,null,{"$f":"IFERROR(VLOOKUP(F195,LookupTable,2,0),\"\")","v":""}]
[null,null,null,null,null,null,""]
[null,null,null,null,null,null,""]
[null,null,null,null,null,null,""]
[null,null,null,null,null,null,""]
[null,null,null,null,null,null,""]